Workbook

Sheet Datos Asegurado
A2: Cotización | H2: Integrantes adicionales a cotizar
A4: 1. Ingrese los datos del asegurado | K4: Fecha de Nacimiento
H5: Número | I5: Relación | J5: Género | K5: Día | L5: Mes | M5: Año | N5: Edad
B6: Fecha Cotización: | C6: =TODAY() -> 2022-07-20
B7: Nombre del titular:
B8: Edad del titular:
B9: Género:
B11: Zona: | C11: Zona 1: CDMX, Area Metropolitana y Monterrey
B13: Número de integrantes adicionales a cotizar:
A16: 2. Datos del agente
B18: Nombre del agente: | C18: Edith Gonzalez Herrera
B19: Agencia: | C19: Oficina Regional Puebla
A22: 3. Datos de la póliza
B24: Tipo de cliente: | C24: Nuevo negocio
B26: Zona: | C26: ='Datos Asegurado'!E11 -> 0
B27: Suma asegurada (mxn):
D28: Maternidad
B29: Deducible (mxn): | D29: Titular: | E29: No
D30: Conyuge: | E30: No
B31: Coaseguro: | E31: No
D32: Asistencia en el extranjero: | E32: Si
E33: No
A35: 4. Costo Poliza | H35: 5. Compara
A37: Concepto | D37: Semestral | E37: Trimestral | F37: Mensual | I37: Guardar para comparar | K37: Limpiar
B38: Prima del asegurado titular: | C38: =MasterBase!C10 -> 0 | D38: =($C$38*1.045/2) -> 0 | E38: =($C$38*1.075/4) -> 0 | F38: =($C$38*1.11/12) -> 0
B39: Prima cónyuge: | C39: =MasterBase!C24 -> 0 | D39: =($C$39*1.045/2) -> 0 | E39: =($C$39*1.075/4) -> 0 | F39: =($C$39*1.11/12) -> 0
B40: Prima hijo(s): | C40: =MasterBase!G24 -> 0 | D40: =($C$40*1.045/2) -> 0 | E40: =($C$40*1.075/4) -> 0 | F40: =($C$40*1.11/12) -> 0
B41: Dependientes económicos | C41: =MasterBase!K24 -> 0 | D41: =($C$41*1.045/2) -> 0 | E41: =($C$41*1.075/4) -> 0 | F41: =($C$41*1.11/12) -> 0
B42: Total Prima: | C42: =SUM(C38:C41) -> 0 | D42: =SUM(D38:D41) -> 0 | E42: 0 | F42: 0
B43: Asistencia en el extranjero: | C43: =IF($E$32="Si",1632,0) -> 1632 | D43: =IF($E$32="Si",1632,0) -> 1632 | E43: 1632 | F43: 1632
B44: Derecho de póliza: | C44: =Master!$U$3 -> 1500 | D44: =Master!$U$3 -> 1500 | E44: =Master!$U$3 -> 1500 | F44: =Master!$U$3 -> 1500
B45: Total descuento (derecho de póliza y recargo por pago fraccionado) | C45: =-1500 -> -1500 | D45: =-1500-(D42*2-C42) -> -1500 | E45: =-1500-(E42*4-C42) -> -1500 | F45: =-1500-(F42*12-C42) -> -1500
B46: IVA (16%) | C46: =SUM(C42:C45) * 16% -> 261.12 | D46: =(D42*2+D43+D45+D44)*16% -> 261.12 | E46: =(E42*4+E43+E45+E44)*16% -> 261.12 | F46: =(F42*12+F43+F45+F44)*16% -> 261.12
B47: Costo total: | C47: =C42+C43+C45+C44+C46 -> 1893.12 | D47: =(D42*2+D43+D45+D44)*1.16 -> 1893.12 | E47: =E42*4+E43+E45+E44+E46 -> 1893.12 | F47: =F42*12+F43+F45+F44+F46 -> 1893.12
B48: Primer Pago: | D48: =($C$42/2+D43/2)*1.16 -> 946.56 | E48: =($C$42/4+E43/4)*1.16 -> 473.28 | F48: =($C$42/12+F43/12)*1.16 -> 157.76
B49: Pagos Subsecuentes: | D49: =($C$42/2+D43/2)*1.16 -> 946.56 | E49: =($C$42/4+D43/4)*1.16 -> 473.28 | F49: =($C$42/12+D43/12)*1.16 -> 157.76

Sheet Instrucciones

Sheet Comparativo
B2: Datos de usuario
C4: Fecha Cotización: | D4: 2022-07-07
C5: Nombre del titular: | D5: ERIC MANZO SAIZ
C6: Edad del titular: | D6: 48
C7: Género: | D7: Masculino
C9: Zona: | D9: Zona 2: Republica mexicana, excepto CDMX, Area Metropolitana y Monterrey
C11: Número de integrantes adicionales a cotizar: | D11: 8
B16: Datos de póliza | I16: Opción 1
J17: Datos de cotización
C18: Tipo de cliente: | D18: Nuevo negocio | J18: Concepto | M18: Semestral | N18: Trimestral | O18: Mensual
K19: Prima del asegurado titular: | L19: 28112 | M19: 14688.52 | N19: 7555.1 | O19: 2600.36
C20: Zona: | D20: 0 | K20: Prima cónyuge: | L20: 20906 | M20: 10923.385 | N20: 5618.4875 | O20: 1933.805
C21: Suma asegurada (mxn): | D21: 5000000 | K21: Prima hijo(s): | L21: 41812 | M21: 21846.77 | N21: 11236.975 | O21: 3867.61
E22: Maternidad | K22: Dependientes económicos | L22: 20906 | M22: 10923.385 | N22: 5618.4875 | O22: 1933.805
C23: Deducible (mxn): | D23: 0 | E23: Titular: | F23: No | K23: Total Prima: | L23: 111736 | M23: 58382.06 | N23: 30029.05 | O23: 10335.58
E24: Conyuge: | F24: No | K24: Asistencia en el extranjero: | L24: 1632 | M24: 1632 | N24: 1632 | O24: 1632
C25: Coaseguro: | D25: 0 | F25: No | K25: Derecho de póliza: | L25: 1500 | M25: 1500 | N25: 1500 | O25: 1500
E26: Asistencia en el extranjero: | F26: Si | K26: Total descuento (derecho de póliza y recargo por pago fraccionado) | L26: -1500 | M26: -6528.12 | N26: -9880.2 | O26: -13790.96
K27: IVA (16%) | L27: 18138.88 | M27: 18138.88 | N27: 18138.88 | O27: 18138.88
K28: Costo total: | L28: 131506.88 | M28: 131506.88 | N28: 131506.88 | O28: 131506.88
K29: Primer Pago: | M29: 66700 | N29: 34296.56 | O29: 12694.26667
K30: Pagos Subsecuentes: | M30: 64806.88 | N30: 32403.44 | O30: 10801.14667
B32: Datos de póliza
C34: Tipo de cliente: | D34: Nuevo negocio | J34: Concepto | M34: Semestral | N34: Trimestral | O34: Mensual
K35: Prima del asegurado titular: | L35: 28112 | M35: 14688.52 | N35: 7555.1 | O35: 2600.36
C36: Zona: | D36: 0 | K36: Prima cónyuge: | L36: 20906 | M36: 10923.385 | N36: 5618.4875 | O36: 1933.805
C37: Suma asegurada (mxn): | D37: 5000000 | K37: Prima hijo(s): | L37: 41812 | M37: 21846.77 | N37: 11236.975 | O37: 3867.61
E38: Maternidad | K38: Dependientes económicos | L38: 20906 | M38: 10923.385 | N38: 5618.4875 | O38: 1933.805
C39: Deducible (mxn): | D39: 0 | E39: Titular: | F39: No | K39: Total Prima: | L39: 111736 | M39: 58382.06 | N39: 30029.05 | O39: 10335.58
E40: Conyuge: | F40: No | K40: Asistencia en el extranjero: | L40: 1632 | M40: 1632 | N40: 1632 | O40: 1632
C41: Coaseguro: | D41: 0 | F41: No | K41: Derecho de póliza: | L41: 1500 | M41: 1500 | N41: 1500 | O41: 1500
E42: Asistencia en el extranjero: | F42: Si | K42: Total descuento (derecho de póliza y recargo por pago fraccionado) | L42: -1500 | M42: -6528.12 | N42: -9880.2 | O42: -13790.96
K43: IVA (16%) | L43: 18138.88 | M43: 18138.88 | N43: 18138.88 | O43: 18138.88
K44: Costo total: | L44: 131506.88 | M44: 131506.88 | N44: 131506.88 | O44: 131506.88
K45: Primer Pago: | M45: 66700 | N45: 34296.56 | O45: 12694.26667
K46: Pagos Subsecuentes: | M46: 64806.88 | N46: 32403.44 | O46: 10801.14667
B48: Datos de póliza
C50: Tipo de cliente: | D50: Nuevo negocio | J50: Concepto | M50: Semestral | N50: Trimestral | O50: Mensual
K51: Prima del asegurado titular: | L51: 28112 | M51: 14688.52 | N51: 7555.1 | O51: 2600.36
C52: Zona: | D52: 0 | K52: Prima cónyuge: | L52: 20906 | M52: 10923.385 | N52: 5618.4875 | O52: 1933.805
C53: Suma asegurada (mxn): | D53: 5000000 | K53: Prima hijo(s): | L53: 41812 | M53: 21846.77 | N53: 11236.975 | O53: 3867.61
E54: Maternidad | K54: Dependientes económicos | L54: 20906 | M54: 10923.385 | N54: 5618.4875 | O54: 1933.805
C55: Deducible (mxn): | D55: 0 | E55: Titular: | F55: No | K55: Total Prima: | L55: 111736 | M55: 58382.06 | N55: 30029.05 | O55: 10335.58
E56: Conyuge: | F56: No | K56: Asistencia en el extranjero: | L56: 1632 | M56: 1632 | N56: 1632 | O56: 1632
C57: Coaseguro: | D57: 0 | F57: No | K57: Derecho de póliza: | L57: 1500 | M57: 1500 | N57: 1500 | O57: 1500
E58: Asistencia en el extranjero: | F58: Si | K58: Total descuento (derecho de póliza y recargo por pago fraccionado) | L58: -1500 | M58: -6528.12 | N58: -9880.2 | O58: -13790.96
K59: IVA (16%) | L59: 18138.88 | M59: 18138.88 | N59: 18138.88 | O59: 18138.88
K60: Costo total: | L60: 131506.88 | M60: 131506.88 | N60: 131506.88 | O60: 131506.88
K61: Primer Pago: | M61: 66700 | N61: 34296.56 | O61: 12694.26667
K62: Pagos Subsecuentes: | M62: 64806.88 | N62: 32403.44 | O62: 10801.14667

Sheet Template PDF
B15: Cotización
B17: Datos Titular
B18: Nombre del titular: | C18: ='Datos Asegurado'!C7 -> 0 | D18: Nombre Agente: | E18: ='Datos Asegurado'!C18 -> Edith Gonzalez Herrera
B19: Edad: | C19: ='Datos Asegurado'!C8 -> 0 | D19: Agencia: | E19: ='Datos Asegurado'!C19 -> Oficina Regional Puebla
B20: Género: | C20: ='Datos Asegurado'!C9 -> 0 | D20: ='Datos Asegurado'!B6 -> Fecha Cotización: | E20: ='Datos Asegurado'!C6 -> 2022-07-20
B21: Lugar de residencia: | C21: ='Datos Asegurado'!C11 -> Zona 1: CDMX, Area Metropolitana y Monterrey
B22: Número de integrantes a cotizar: | C22: ='Datos Asegurado'!C13 -> 0
B24: Características de la Póliza
B25: Suma asegurada (mxn): | C25: ='Datos Asegurado'!C27 -> 0
B26: Deducible (mxn): | C26: ='Datos Asegurado'!C29 -> 0
B27: Coaseguro | C27: ='Datos Asegurado'!C31 -> 0
B28: Tipo de cliente: | C28: ='Datos Asegurado'!C24:D24 -> Nuevo negocio
B29: ='Datos Asegurado'!D28 -> Maternidad | C29: ='Datos Asegurado'!D29 -> Titular: | D29: ='Datos Asegurado'!E29 -> No
C30: ='Datos Asegurado'!D30 -> Conyuge: | D30: ='Datos Asegurado'!E30 -> No
B32: Costo Poliza
B33: Concepto | C33: Anual | D33: Semestral | E33: Trimestral | F33: Mensual
B34: ='Datos Asegurado'!B38 -> Prima del asegurado titular: | C34: ='Datos Asegurado'!C38 -> 0 | D34: ='Datos Asegurado'!D38 -> 0 | E34: ='Datos Asegurado'!E38 -> 0 | F34: ='Datos Asegurado'!F38 -> 0
B35: ='Datos Asegurado'!B39 -> Prima cónyuge: | C35: ='Datos Asegurado'!C39 -> 0 | D35: ='Datos Asegurado'!D39 -> 0 | E35: ='Datos Asegurado'!E39 -> 0 | F35: ='Datos Asegurado'!F39 -> 0
B36: ='Datos Asegurado'!B40 -> Prima hijo(s): | C36: ='Datos Asegurado'!C40 -> 0 | D36: ='Datos Asegurado'!D40 -> 0 | E36: ='Datos Asegurado'!E40 -> 0 | F36: ='Datos Asegurado'!F40 -> 0
B37: ='Datos Asegurado'!B41 -> Dependientes económicos | C37: ='Datos Asegurado'!C41 -> 0 | D37: ='Datos Asegurado'!D41 -> 0 | E37: ='Datos Asegurado'!E41 -> 0 | F37: ='Datos Asegurado'!F41 -> 0
B38: ='Datos Asegurado'!B42 -> Total Prima: | C38: ='Datos Asegurado'!C42 -> 0 | D38: ='Datos Asegurado'!D42 -> 0 | E38: ='Datos Asegurado'!E42 -> 0 | F38: ='Datos Asegurado'!F42 -> 0
B39: ='Datos Asegurado'!B43 -> Asistencia en el extranjero: | C39: ='Datos Asegurado'!C43 -> 1632 | D39: ='Datos Asegurado'!D43 -> 1632 | E39: ='Datos Asegurado'!E43 -> 1632 | F39: ='Datos Asegurado'!F43 -> 1632
B40: ='Datos Asegurado'!B44 -> Derecho de póliza: | C40: ='Datos Asegurado'!C44 -> 1500 | D40: ='Datos Asegurado'!D44 -> 1500 | E40: ='Datos Asegurado'!E44 -> 1500 | F40: ='Datos Asegurado'!F44 -> 1500
B41: ='Datos Asegurado'!B45 -> Total descuento (derecho de póliza y recargo por pago fraccionado) | C41: ='Datos Asegurado'!C45 -> -1500 | D41: ='Datos Asegurado'!D45 -> -1500 | E41: ='Datos Asegurado'!E45 -> -1500 | F41: ='Datos Asegurado'!F45 -> -1500
B42: ='Datos Asegurado'!B46 -> IVA (16%) | C42: ='Datos Asegurado'!C46 -> 261.12 | D42: ='Datos Asegurado'!D46 -> 261.12 | E42: ='Datos Asegurado'!E46 -> 261.12 | F42: ='Datos Asegurado'!F46 -> 261.12
B43: ='Datos Asegurado'!B47 -> Costo total: | C43: ='Datos Asegurado'!C47 -> 1893.12 | D43: ='Datos Asegurado'!D47 -> 1893.12 | E43: ='Datos Asegurado'!E47 -> 1893.12 | F43: ='Datos Asegurado'!F47 -> 1893.12
B44: ='Datos Asegurado'!B48 -> Primer Pago: | C44: ='Datos Asegurado'!C48 -> 0 | D44: ='Datos Asegurado'!D48 -> 946.56 | E44: ='Datos Asegurado'!E48 -> 473.28 | F44: ='Datos Asegurado'!F48 -> 157.76
B45: ='Datos Asegurado'!B49 -> Pagos Subsecuentes: | C45: ='Datos Asegurado'!C49 -> 0 | D45: ='Datos Asegurado'!D49 -> 946.56 | E45: ='Datos Asegurado'!E49 -> 473.28 | F45: ='Datos Asegurado'!F49 -> 157.76
B51: *Vigencia de la promoción para pólizas de nuevo negocio contratadas del 1 de julio del 2022 al 31 de diciembre 2022. El asegurado deberá mantenerse en el mismo plan para conservar los beneficios. Aplican restricciones. Los productos aquí descritos son operados y propiedad de Bupa México, Compañía de Seguros, S.A. de C.V., y se regirán por las disposiciones contractuales y legales aplicables. Las condiciones, coberturas y exclusiones del producto podrán cambiar sin previo aviso. La descripción que se hace de los beneficios es con fines meramente informativos. Los términos, condiciones y exclusiones aplicables se establecerán en las condiciones generales del producto contratado. Los beneficios están sujetos a la contratación del producto. La presente cotización es de carácter informativo y no constituye el monto de la prima definitiva ni las condiciones de la misma. La emisión de la póliza está sujeta a valoración del riesgo y/o cambio en la tarifa por parte del área de Suscripción de Bupa y puede tener modificaciones por lo que no expresa compromiso legal para la cobertura del seguro. Para una cotización más detallada por favor contáctenos a través de su agente o al 55 5202 1701. La vigencia de la cotización es de 30 días naturales para la recepción de la solicitud de seguro, después de este período, las tarifas deberán ser reconfirmadas a través de su agente o ejecutivo y podrán sufrir ajustes sin previo aviso. BNV tarifa 2022: Tarifas válidas hasta el 31 de diciembre del 2022

Sheet Template PDF Comparativo
B15: Comparativo Cotizaciones
B17: Nombre del titular | C17: =Comparativo!D5 -> ERIC MANZO SAIZ | D17: ='Datos Asegurado'!B18 -> Nombre del agente: | E17: ='Datos Asegurado'!C18 -> Edith Gonzalez Herrera
B18: Edad | C18: ='Datos Asegurado'!C8 -> 0 | D18: ='Datos Asegurado'!B19 -> Agencia: | E18: ='Datos Asegurado'!C19 -> Oficina Regional Puebla
B19: Género | C19: ='Datos Asegurado'!C9 -> 0 | D19: ='Datos Asegurado'!B6 -> Fecha Cotización: | E19: ='Datos Asegurado'!C6 -> 2022-07-20
B20: Lugar de residencia | C20: ='Datos Asegurado'!C11 -> Zona 1: CDMX, Area Metropolitana y Monterrey
B21: Número de integrantes a cotizar | C21: ='Datos Asegurado'!C13 -> 0
B23: Opción 1
B24: Suma asegurada (mxn) | C24: =Comparativo!D21 -> 5000000 | D24: Coaseguro | E24: =Comparativo!D25 -> 0
B25: Deducible (mxn) | C25: =Comparativo!D23 -> 0 | D25: Tipo de cliente | E25: =Comparativo!D18 -> Nuevo negocio
B26: =Comparativo!E22 -> Maternidad | C26: =CONCATENATE(Comparativo!E23," ",Comparativo!F23) -> Titular: No | E26: =CONCATENATE(Comparativo!E24," ",Comparativo!F24) -> Conyuge: No
B27: Concepto | C27: Anual | D27: Semestral | E27: Trimestral | F27: Mensual
B28: =Comparativo!K19 -> Prima del asegurado titular: | C28: =Comparativo!L19 -> 28112 | D28: =Comparativo!M19 -> 14688.52 | E28: =Comparativo!N19 -> 7555.1 | F28: =Comparativo!O19 -> 2600.36
B29: =Comparativo!K20 -> Prima cónyuge: | C29: =Comparativo!L20 -> 20906 | D29: =Comparativo!M20 -> 10923.385 | E29: =Comparativo!N20 -> 5618.4875 | F29: =Comparativo!O20 -> 1933.805
B30: =Comparativo!K21 -> Prima hijo(s): | C30: =Comparativo!L21 -> 41812 | D30: =Comparativo!M21 -> 21846.77 | E30: =Comparativo!N21 -> 11236.975 | F30: =Comparativo!O21 -> 3867.61
B31: =Comparativo!K22 -> Dependientes económicos | C31: =Comparativo!L22 -> 20906 | D31: =Comparativo!M22 -> 10923.385 | E31: =Comparativo!N22 -> 5618.4875 | F31: =Comparativo!O22 -> 1933.805
B32: =Comparativo!K23 -> Total Prima: | C32: =Comparativo!L23 -> 111736 | D32: =Comparativo!M23 -> 58382.06 | E32: =Comparativo!N23 -> 30029.05 | F32: =Comparativo!O23 -> 10335.58
B33: =Comparativo!K24 -> Asistencia en el extranjero: | C33: =Comparativo!L24 -> 1632 | D33: =Comparativo!M24 -> 1632 | E33: =Comparativo!N24 -> 1632 | F33: =Comparativo!O24 -> 1632
B34: =Comparativo!K25 -> Derecho de póliza: | C34: =Comparativo!L25 -> 1500 | D34: =Comparativo!M25 -> 1500 | E34: =Comparativo!N25 -> 1500 | F34: =Comparativo!O25 -> 1500
B35: =Comparativo!K26 -> Total descuento (derecho de póliza y recargo por pago fraccionado) | C35: =Comparativo!L26 -> -1500 | D35: =Comparativo!M26 -> -6528.12 | E35: =Comparativo!N26 -> -9880.2 | F35: =Comparativo!O26 -> -13790.96
B36: =Comparativo!K27 -> IVA (16%) | C36: =Comparativo!L27 -> 18138.88 | D36: =Comparativo!M27 -> 18138.88 | E36: =Comparativo!N27 -> 18138.88 | F36: =Comparativo!O27 -> 18138.88
B37: =Comparativo!K28 -> Costo total: | C37: =Comparativo!L28 -> 131506.88 | D37: =Comparativo!M28 -> 131506.88 | E37: =Comparativo!N28 -> 131506.88 | F37: =Comparativo!O28 -> 131506.88
B38: =Comparativo!K29 -> Primer Pago: | C38: =Comparativo!L29 -> 0 | D38: =Comparativo!M29 -> 66700 | E38: =Comparativo!N29 -> 34296.56 | F38: =Comparativo!O29 -> 12694.26667
B39: =Comparativo!K30 -> Pagos Subsecuentes: | C39: =Comparativo!L30 -> 0 | D39: =Comparativo!M30 -> 64806.88 | E39: =Comparativo!N30 -> 32403.44 | F39: =Comparativo!O30 -> 10801.14667
B41: Opción 2
B42: Suma asegurada (mxn) | C42: =Comparativo!D37 -> 5000000 | D42: Coaseguro | E42: =Comparativo!D41 -> 0
B43: Deducible (mxn) | C43: =Comparativo!D39 -> 0 | D43: Tipo de cliente | E43: =Comparativo!D34 -> Nuevo negocio
B44: =Comparativo!E38 -> Maternidad | C44: =CONCATENATE(Comparativo!E39," ",Comparativo!F39) -> Titular: No | E44: =CONCATENATE(Comparativo!E40," ",Comparativo!F40) -> Conyuge: No
B45: Concepto | C45: Anual | D45: Semestral | E45: Trimestral | F45: Mensual
B46: =Comparativo!K35 -> Prima del asegurado titular: | C46: =Comparativo!L35 -> 28112 | D46: =Comparativo!M35 -> 14688.52 | E46: =Comparativo!N35 -> 7555.1 | F46: =Comparativo!O35 -> 2600.36
B47: =Comparativo!K36 -> Prima cónyuge: | C47: =Comparativo!L36 -> 20906 | D47: =Comparativo!M36 -> 10923.385 | E47: =Comparativo!N36 -> 5618.4875 | F47: =Comparativo!O36 -> 1933.805
B48: =Comparativo!K37 -> Prima hijo(s): | C48: =Comparativo!L37 -> 41812 | D48: =Comparativo!M37 -> 21846.77 | E48: =Comparativo!N37 -> 11236.975 | F48: =Comparativo!O37 -> 3867.61
B49: =Comparativo!K38 -> Dependientes económicos | C49: =Comparativo!L38 -> 20906 | D49: =Comparativo!M38 -> 10923.385 | E49: =Comparativo!N38 -> 5618.4875 | F49: =Comparativo!O38 -> 1933.805
B50: =Comparativo!K39 -> Total Prima: | C50: =Comparativo!L39 -> 111736 | D50: =Comparativo!M39 -> 58382.06 | E50: =Comparativo!N39 -> 30029.05 | F50: =Comparativo!O39 -> 10335.58
B51: =Comparativo!K40 -> Asistencia en el extranjero: | C51: =Comparativo!L40 -> 1632 | D51: =Comparativo!M40 -> 1632 | E51: =Comparativo!N40 -> 1632 | F51: =Comparativo!O40 -> 1632
B52: =Comparativo!K41 -> Derecho de póliza: | C52: =Comparativo!L41 -> 1500 | D52: =Comparativo!M41 -> 1500 | E52: =Comparativo!N41 -> 1500 | F52: =Comparativo!O41 -> 1500
B53: =Comparativo!K42 -> Total descuento (derecho de póliza y recargo por pago fraccionado) | C53: =Comparativo!L42 -> -1500 | D53: =Comparativo!M42 -> -6528.12 | E53: =Comparativo!N42 -> -9880.2 | F53: =Comparativo!O42 -> -13790.96
B54: =Comparativo!K43 -> IVA (16%) | C54: =Comparativo!L43 -> 18138.88 | D54: =Comparativo!M43 -> 18138.88 | E54: =Comparativo!N43 -> 18138.88 | F54: =Comparativo!O43 -> 18138.88
B55: =Comparativo!K44 -> Costo total: | C55: =Comparativo!L44 -> 131506.88 | D55: =Comparativo!M44 -> 131506.88 | E55: =Comparativo!N44 -> 131506.88 | F55: =Comparativo!O44 -> 131506.88
B56: =Comparativo!K45 -> Primer Pago: | C56: =Comparativo!L45 -> 0 | D56: =Comparativo!M45 -> 66700 | E56: =Comparativo!N45 -> 34296.56 | F56: =Comparativo!O45 -> 12694.26667
B57: =Comparativo!K46 -> Pagos Subsecuentes: | C57: =Comparativo!L46 -> 0 | D57: =Comparativo!M46 -> 64806.88 | E57: =Comparativo!N46 -> 32403.44 | F57: =Comparativo!O46 -> 10801.14667
B59: Opción 3
B60: Suma asegurada (mxn) | C60: =Comparativo!D53 -> 5000000 | D60: Coaseguro | E60: =Comparativo!D57 -> 0
B61: Deducible (mxn) | C61: =Comparativo!D55 -> 0 | D61: Tipo de cliente | E61: =Comparativo!D50 -> Nuevo negocio
B62: =Comparativo!E54 -> Maternidad | C62: =CONCATENATE(Comparativo!E55," ",Comparativo!F55) -> Titular: No | E62: =CONCATENATE(Comparativo!E56," ",Comparativo!F56) -> Conyuge: No
B63: Concepto | C63: Anual | D63: Semestral | E63: Trimestral | F63: Mensual
B64: =Comparativo!K51 -> Prima del asegurado titular: | C64: =Comparativo!L51 -> 28112 | D64: =Comparativo!M51 -> 14688.52 | E64: =Comparativo!N51 -> 7555.1 | F64: =Comparativo!O51 -> 2600.36
B65: =Comparativo!K52 -> Prima cónyuge: | C65: =Comparativo!L52 -> 20906 | D65: =Comparativo!M52 -> 10923.385 | E65: =Comparativo!N52 -> 5618.4875 | F65: =Comparativo!O52 -> 1933.805
B66: =Comparativo!K53 -> Prima hijo(s): | C66: =Comparativo!L53 -> 41812 | D66: =Comparativo!M53 -> 21846.77 | E66: =Comparativo!N53 -> 11236.975 | F66: =Comparativo!O53 -> 3867.61
B67: =Comparativo!K54 -> Dependientes económicos | C67: =Comparativo!L54 -> 20906 | D67: =Comparativo!M54 -> 10923.385 | E67: =Comparativo!N54 -> 5618.4875 | F67: =Comparativo!O54 -> 1933.805
B68: =Comparativo!K55 -> Total Prima: | C68: =Comparativo!L55 -> 111736 | D68: =Comparativo!M55 -> 58382.06 | E68: =Comparativo!N55 -> 30029.05 | F68: =Comparativo!O55 -> 10335.58
B69: =Comparativo!K56 -> Asistencia en el extranjero: | C69: =Comparativo!L56 -> 1632 | D69: =Comparativo!M56 -> 1632 | E69: =Comparativo!N56 -> 1632 | F69: =Comparativo!O56 -> 1632
B70: =Comparativo!K57 -> Derecho de póliza: | C70: =Comparativo!L57 -> 1500 | D70: =Comparativo!M57 -> 1500 | E70: =Comparativo!N57 -> 1500 | F70: =Comparativo!O57 -> 1500
B71: =Comparativo!K58 -> Total descuento (derecho de póliza y recargo por pago fraccionado) | C71: =Comparativo!L58 -> -1500 | D71: =Comparativo!M58 -> -6528.12 | E71: =Comparativo!N58 -> -9880.2 | F71: =Comparativo!O58 -> -13790.96
B72: =Comparativo!K59 -> IVA (16%) | C72: =Comparativo!L59 -> 18138.88 | D72: =Comparativo!M59 -> 18138.88 | E72: =Comparativo!N59 -> 18138.88 | F72: =Comparativo!O59 -> 18138.88
B73: =Comparativo!K60 -> Costo total: | C73: =Comparativo!L60 -> 131506.88 | D73: =Comparativo!M60 -> 131506.88 | E73: =Comparativo!N60 -> 131506.88 | F73: =Comparativo!O60 -> 131506.88
B74: =Comparativo!K61 -> Primer Pago: | C74: =Comparativo!L61 -> 0 | D74: =Comparativo!M61 -> 66700 | E74: =Comparativo!N61 -> 34296.56 | F74: =Comparativo!O61 -> 12694.26667
B75: =Comparativo!K62 -> Pagos Subsecuentes: | C75: =Comparativo!L62 -> 0 | D75: =Comparativo!M62 -> 64806.88 | E75: =Comparativo!N62 -> 32403.44 | F75: =Comparativo!O62 -> 10801.14667
B76: La presente cotización es de carácter informativo, no constituye una solicitud de seguro y/o el monto de la prima definitiva y/o las condiciones de la misma y/o una oferta de aseguramiento en términos del artículo 5to de la Ley Sobre el Contrato de Seguro. La emisión de la póliza así como posibles cambios en la tarifa están sujetos a valoración del riesgo de acuerdo con las políticas de Suscripción de Bupa México y es susceptible de modificaciones, por lo que Bupa podrá aceptar o negar el aseguramiento del riesgo propuesto.

Sheet Brochure

Sheet Versión
A2: V.23
A3: Actualización: | B3: 2022-07-20 | C3: (A.Ext)

Sheet Objetos Estructura (hidden)
A1: Estructuras Maestras
A3: Estructura asegurado
B4: Seleccione una opción | C4: Masculino | D4: 10 | E4: 06 | F4: 1980

Sheet Master (hidden)
A1: Datos Maestros | R1: Prima Base | AC1: Prima Riesgo Nuevo NN Eliminacion periodos de espera | AE1: Prima Tarifa Nuevo Producto NN Eliminacion periodos de espera | AG1: Prima Tarifa Nuevo Producto Ren Eliminacion periodos de espera | AI1: Tarifa Base, elimación | AJ1: Aceptación Periodos de Espera | AK1: Bupa Internacional | AM1: Aplica descuento nuevo negocio | AN1: Asistencia en el extranjero | AO1: Aplica descuento por pago fraccionado
A2: Genero | B2: Lugares de residencia | C2: Zona | D2: FD Zona | E2: Parentezco | F2: Dias | G2: Meses | H2: Años | I2: Tipo Cliente | J2: Factor descuento | K2: Sumas aseguradas | L2: FD Suma asegurada | M2: Deducibles | N2: Maternidad Aplica | O2: FD Deducible | P2: Coasegurado | Q2: FD Coasegurado | R2: Edad | S2: 40000 | T2: Factor es mujer | U2: Administración | V2: Factor descuento | X2: Recargos | Y2: NN | Z2: Renovacion | AA2: Transfer | AB2: Seguro dental | AC2: Edad | AD2: Valor | AE2: Edad | AF2: Valor | AG2: Edad | AH2: Valor | AI2: Valor | AJ2: Valor | AK2: Valor | AM2: Si | AN2: Si | AO2: Si
A3: Masculino | B3: Zona 1: CDMX, Area Metropolitana y Monterrey | C3: Zona 1 | D3: 0.8 | E3: Seleccione una opción | F3: 01 | G3: 01 | H3: 1946 | I3: Nuevo negocio | J3: 1 | K3: 1000000 | L3: 0.87262 | M3: 0 | N3: Si | O3: 1 | P3: 0 | Q3: 1 | R3: 0 | S3: 16257.969 | T3: 2600 | U3: 1500 | V3: Tipo cliente | W3: =VLOOKUP('Datos Asegurado'!C24,Master!I3:J5,2,FALSE) -> 1 | X3: Administracion | Y3: 0.15 | Z3: 0.15 | AA3: 0.15 | AB3: 400 | AC3: =R3 -> 0 | AD3: =S3*$W$14+$AB$3 ->  | AE3: =AC3 -> 0 | AF3: =AD3/(1-SUM($Y$3:$Y$5)) ->  | AG3: =AE3 -> 0 | AH3: =AD3/(1-SUM($Z$3:$Z$5)) ->  | AI3: =AF3 ->  | AJ3: =AI3*90% ->  | AK3: =AI3 ->  | AM3: No | AN3: No | AO3: No
A4: Femenino | B4: Zona 2: Republica mexicana, excepto CDMX, Area Metropolitana y Monterrey | C4: Zona 2 | D4: 1 | E4: Conyuge | F4: 02 | G4: 02 | H4: 1947 | K4: 2000000 | R4: 1 | S4: 14413.02784 | V4: Zona | W4: =VLOOKUP('Datos Asegurado'!C11,Master!B3:D35,3,FALSE) -> 0.8 | X4: Adquisicion | Y4: 0.2 | Z4: 0.17 | AA4: 0.09 | AC4: 1 | AD4: =S4*$W$14+$AB$3 ->  | AE4: =AC4 -> 1 | AF4: =AD4/(1-SUM($Y$3:$Y$5)) ->  | AG4: =AE4 -> 1 | AH4: =AD4/(1-SUM($Z$3:$Z$5)) ->  | AI4: =AF4 ->  | AJ4: =AI4*90% ->  | AK4: =AI4 -> 
D5: 1 | E5: Hij@ | F5: 03 | G5: 03 | H5: 1948 | K5: 3000000 | R5: 2 | S5: 12422.51997 | V5: Suma asegurada | W5: =VLOOKUP('Datos Asegurado'!C27,Master!K3:L6,2,FALSE) ->  | X5: Utilidad | Y5: 0.04 | Z5: 0.04 | AA5: 0.04 | AC5: 2 | AE5: 2 | AG5: 2
D6: 0.8 | E6: Dependiente economico | F6: 04 | G6: 04 | H6: 1949 | K6: 4000000 | R6: 3 | S6: 11563.46358 | V6: Deducible | W6: =VLOOKUP('Datos Asegurado'!C29,Master!M3:O11,3,FALSE) -> 1 | X6: Total | Y6: =SUM(Y3:Y5) -> 0.39 | Z6: =SUM(Z3:Z5) -> 0.36 | AA6: =SUM(AA3:AA5) -> 0.28 | AC6: 3 | AE6: 3 | AG6: 3
D7: 0.8 | F7: 05 | G7: 05 | H7: 1950 | K7: 5000000 | R7: 4 | S7: 10630.92706 | V7: Coasegurado | W7: =VLOOKUP('Datos Asegurado'!C31,Master!P3:Q7,2,FALSE) -> 1 | X7: 1-Total | Y7: =1-Y6 -> 0.61 | Z7: =1-Z6 -> 0.64 | AA7: =1-AA6 -> 0.72 | AC7: 4 | AE7: 4 | AG7: 4
D8: 0.8 | F8: 06 | G8: 06 | H8: 1951 | R8: 5 | S8: 10995.29441 | V8: Cobertura Extranjero: (no) | W8: 0.85493 | AC8: 5 | AE8: 5 | AG8: 5
D9: 0.8 | F9: 07 | G9: 07 | H9: 1952 | R9: 6 | S9: 11372.15019 | V9: Reducción Honorarios: (Reducido) | W9: 0.9 | AC9: 6 | AE9: 6 | AG9: 6
D10: 0.8 | F10: 08 | G10: 08 | H10: 1953 | R10: 7 | S10: 11761.92243 | V10: Copago Medicamentos: (0) | W10: 1 | AC10: 7 | AE10: 7 | AG10: 7
D11: 1 | F11: 09 | G11: 09 | H11: 1954 | R11: 8 | S11: 12165.05382 | V11: Reduccion a Consultas: (25) | W11: 0.98 | AC11: 8 | AE11: 8 | AG11: 8
D12: 0.8 | F12: 10 | G12: 10 | H12: 1955 | R12: 9 | S12: 12582.00226 | V12: Re. Renuncia utilidad: (Si) | W12: 0.95 | AC12: 9 | AE12: 9 | AG12: 9
D13: 0.8 | F13: 11 | G13: 11 | H13: 1956 | R13: 10 | S13: 13013.2413 | V13: Re. Adicional Actuarial: (Si) | W13: 0.95 | AC13: 10 | AE13: 10 | AG13: 10
D14: 0.8 | F14: 12 | G14: 12 | H14: 1957 | R14: 11 | S14: 13459.26075 | V14: Factor descuento sin tipo cliente | W14: =W5*W6*W7*W8*W9*W10*W11*W12*W13*W4 ->  | AC14: 11 | AE14: 11 | AG14: 11
D15: 0.8 | F15: 13 | H15: 1958 | R15: 12 | S15: 13920.56719 | V15: Factor descuento con tipo cliente | W15: =W3*W4*W5*W6*W7*W8*W9*W10*W11*W12*W13 ->  | AC15: 12 | AE15: 12 | AG15: 12
D16: 0.8 | F16: 14 | H16: 1959 | R16: 13 | S16: 14397.68458 | AC16: 13 | AE16: 13 | AG16: 13
D17: 1 | F17: 15 | H17: 1960 | R17: 14 | S17: 14891.15482 | AC17: 14 | AE17: 14 | AG17: 14
D18: 0.8 | F18: 16 | H18: 1961 | R18: 15 | S18: 15401.5384 | AC18: 15 | AE18: 15 | AG18: 15
D19: 0.8 | F19: 17 | H19: 1962 | R19: 16 | S19: 15929.41501 | AC19: 16 | AE19: 16 | AG19: 16
D20: 0.8 | F20: 18 | H20: 1963 | R20: 17 | S20: 16475.38421 | AC20: 17 | AE20: 17 | AG20: 17
D21: 1 | F21: 19 | H21: 1964 | R21: 18 | S21: 16973.02601 | AC21: 18 | AE21: 18 | AG21: 18
D22: 0.8 | F22: 20 | H22: 1965 | R22: 19 | S22: 17712.20798 | AC22: 19 | AE22: 19 | AG22: 19
D23: 0.8 | F23: 21 | H23: 1966 | R23: 20 | S23: 18521.78824 | AC23: 20 | AE23: 20 | AG23: 20
D24: 0.8 | F24: 22 | H24: 1967 | R24: 21 | S24: 19331.36849 | AC24: 21 | AE24: 21 | AG24: 21
D25: 1 | F25: 23 | H25: 1968 | R25: 22 | S25: 20091.66995 | AC25: 22 | AE25: 22 | AG25: 22
D26: 0.8 | F26: 24 | H26: 1969 | R26: 23 | S26: 20957.56883 | AC26: 23 | AE26: 23 | AG26: 23
D27: 0.8 | F27: 25 | H27: 1970 | R27: 24 | S27: 21767.14908 | AC27: 24 | AE27: 24 | AG27: 24
D28: 0.8 | F28: 26 | H28: 1971 | R28: 25 | S28: 22330.33534 | AC28: 25 | AE28: 25 | AG28: 25
D29: 1 | F29: 27 | H29: 1972 | R29: 26 | S29: 23196.23422 | AC29: 26 | AE29: 26 | AG29: 26
D30: 0.8 | F30: 28 | H30: 1973 | R30: 27 | S30: 24033.97379 | AC30: 27 | AE30: 27 | AG30: 27
D31: 0.8 | F31: 29 | H31: 1974 | R31: 28 | S31: 24899.87267 | AC31: 28 | AE31: 28 | AG31: 28
D32: 0.8 | F32: 30 | H32: 1975 | R32: 29 | S32: 25962.88674 | AC32: 29 | AE32: 29 | AG32: 29
D33: 0.8 | F33: 31 | H33: 1976 | R33: 30 | S33: 28307.93177 | AC33: 30 | AE33: 30 | AG33: 30
D34: 0.8 | H34: 1977 | R34: 31 | S34: 29506.42342 | AC34: 31 | AE34: 31 | AG34: 31
D35: 0.8 | H35: 1978 | R35: 32 | S35: 30690.20966 | AC35: 32 | AE35: 32 | AG35: 32
H36: 1979 | R36: 33 | S36: 31513.71313 | AC36: 33 | AE36: 33 | AG36: 33
H37: 1980 | R37: 34 | S37: 32396.03828 | AC37: 34 | AE37: 34 | AG37: 34
H38: 1981 | R38: 35 | S38: 33212.18904 | AC38: =R38 -> 35 | AE38: 35 | AG38: 35
H39: 1982 | R39: 36 | S39: 34065.10334 | AC39: 36 | AE39: 36 | AG39: 36
H40: 1983 | R40: 37 | S40: 34918.01765 | AC40: 37 | AE40: 37 | AG40: 37
H41: 1984 | R41: 38 | S41: 35734.16841 | AC41: 38 | AE41: 38 | AG41: 38
H42: 1985 | R42: 39 | S42: 36851.78026 | AC42: 39 | AE42: 39 | AG42: 39
H43: 1986 | R43: 40 | S43: 37866.45418 | AC43: 40 | AE43: 40 | AG43: 40
H44: 1987 | R44: 41 | S44: 38866.42268 | AC44: 41 | AE44: 41 | AG44: 41
H45: 1988 | R45: 42 | S45: 39881.0966 | AC45: 42 | AE45: 42 | AG45: 42
H46: 1989 | R46: 43 | S46: 41042.82471 | AC46: 43 | AE46: 43 | AG46: 43
H47: 1990 | R47: 44 | S47: 42241.31636 | AC47: 44 | AE47: 44 | AG47: 44
H48: 1991 | R48: 45 | S48: 43879.64085 | AC48: 45 | AE48: 45 | AG48: 45
H49: 1992 | R49: 46 | S49: 45128.03707 | AC49: 46 | AE49: 46 | AG49: 46
H50: 1993 | R50: 47 | S50: 46316.98584 | AC50: 47 | AE50: 47 | AG50: 47
H51: 1994 | R51: 48 | S51: 48598.28131 | AC51: 48 | AE51: 48 | AG51: 48
H52: 1995 | R52: 49 | S52: 50188.5003 | AC52: 49 | AE52: 49 | AG52: 49
H53: 1996 | R53: 50 | S53: 52090.97479 | AC53: 50 | AE53: 50 | AG53: 50
H54: 1997 | R54: 51 | S54: 53427.60352 | AC54: 51 | AE54: 51 | AG54: 51
H55: 1998 | R55: 52 | S55: 55865.80894 | AC55: 52 | AE55: 52 | AG55: 52
H56: 1999 | R56: 53 | S56: 59037.32981 | AC56: 53 | AE56: 53 | AG56: 53
H57: 2000 | R57: 54 | S57: 62777.90346 | AC57: 54 | AE57: 54 | AG57: 54
H58: 2001 | R58: 55 | S58: 67440.85106 | AC58: 55 | AE58: 55 | AG58: 55
H59: 2002 | R59: 56 | S59: 72945.2928 | AC59: 56 | AE59: 56 | AG59: 56
H60: 2003 | R60: 57 | S60: 76482.18076 | AC60: 57 | AE60: 57 | AG60: 57
H61: 2004 | R61: 58 | S61: 82089.63865 | AC61: 58 | AE61: 58 | AG61: 58
H62: 2005 | R62: 59 | S62: 87834.06032 | AC62: 59 | AE62: 59 | AG62: 59
H63: 2006 | R63: 60 | S63: 94150.50714 | AC63: 60 | AE63: 60 | AG63: 60
H64: 2007 | R64: 61 | S64: 100587.8044 | AC64: 61 | AE64: 61 | AG64: 61
H65: 2008 | R65: 62 | S65: 107226.5189 | AC65: 62 | AE65: 62 | AG65: 62
H66: 2009 | R66: 63 | S66: 116830.0962 | AC66: 63 | AE66: 63 | AG66: 63
H67: 2010 | R67: 64 | S67: 127859.7081 | AC67: 64 | AE67: 64 | AG67: 64
H68: 2011 | R68: 65 | S68: 138163.3572 | AC68: 65 | AD68: =S68*$W$14+$AB$3 ->  | AE68: =AC68 -> 65 | AF68: =AD68/(1-SUM($Y$3:$Y$5)) ->  | AG68: =AE68 -> 65 | AH68: =AD68/(1-SUM($Z$3:$Z$5)) ->  | AI68: =AF68 ->  | AJ68: =AI68*90% ->  | AK68: =AI68 -> 
H69: 2012 | R69: 66 | S69: 147274.4594 | AC69: 66 | AE69: 66 | AG69: 66
H70: 2013 | R70: 67 | S70: 156556.3948 | AC70: 67 | AE70: 67 | AG70: 67
H71: 2014 | R71: 68 | S71: 169084.1603 | AC71: 68 | AE71: 68 | AG71: 68
H72: 2015 | R72: 69 | S72: 181864.1082 | AC72: 69 | AE72: 69 | AG72: 69
H73: 2016 | R73: 70 | S73: 194701.0004 | AC73: 70 | AE73: 70 | AG73: 70
H74: 2017 | R74: 71 | S74: 207668.0512 | AC74: 71 | AE74: 71 | AG74: 71
H75: 2018 | R75: 72 | S75: 220740.8559 | AC75: 72 | AE75: 72 | AG75: 72
H76: 2019 | R76: 73 | S76: 236189.0551 | AC76: 73 | AE76: 73 | AG76: 73
H77: 2020 | R77: 74 | S77: 251767.413 | AC77: 74 | AE77: 74 | AG77: 74
R78: 75 | S78: 267500.3341 | AC78: 75 | AE78: 75 | AG78: 75
R79: 76 | S79: 283379.6837 | AC79: 76 | AE79: 76 | AG79: 76
R80: 77 | S80: 299372.922 | AC80: 77 | AE80: 77 | AG80: 77
R81: 78 | S81: 315813.5806 | AC81: 78 | AE81: 78 | AG81: 78
R82: 79 | S82: 332441.3421 | AC82: 79 | AE82: 79 | AG82: 79
R83: 80 | S83: 349264.3416 | AC83: 80 | AE83: 80 | AG83: 80
R84: 81 | S84: 366062.9363 | AC84: 81 | AE84: 81 | AG84: 81
R85: 82 | S85: 383138.118 | AC85: 82 | AE85: 82 | AG85: 82
R86: 83 | S86: 400359.7282 | AC86: 83 | AE86: 83 | AG86: 83
R87: 84 | S87: 417573.2035 | AC87: 84 | AE87: 84 | AG87: 84

Sheet MasterBase (hidden)
A1: Producto Seleccionado | M1: Tarifas base
A2: Contrucción del plan seleccionado | M2: Llave de busqueda | N2: PlanName | O2: Region | P2: LowAge | Q2: Rate
A3: Suma asegurada | B3: Deducible | C3: Coaseguro | D3: Tipo de cliente | E3: Código de producto | M3: =CONCATENATE(N3,O3,P3) -> NVFS1D0C0TC0Mexico Region 1 BNV0 | N3: NVFS1D0C0TC0 | O3: Mexico Region 1 BNV | P3: 0 | Q3: 9754
A4: ='Datos Asegurado'!C27/1000000 -> 0 | B4: ='Datos Asegurado'!C29/1000 -> 0 | C4: ='Datos Asegurado'!C31*100 -> 0 | D4: 0 | E4: =CONCATENATE("NVFS",A4,"D",B4,"C",C4,"TC",D4) -> NVFS0D0C0TC0 | M4: NVFS1D0C0TC0Mexico Region 1 BNV1 | N4: NVFS1D0C0TC0 | O4: Mexico Region 1 BNV | P4: 1 | Q4: 8696
M5: NVFS1D0C0TC0Mexico Region 1 BNV2 | N5: NVFS1D0C0TC0 | O5: Mexico Region 1 BNV | P5: 2 | Q5: 7556
A6: Región seleccionada | M6: NVFS1D0C0TC0Mexico Region 1 BNV3 | N6: NVFS1D0C0TC0 | O6: Mexico Region 1 BNV | P6: 3 | Q6: 7065
A7: =IF('Datos Asegurado'!C11="Zona 1: CDMX, Area Metropolitana y Monterrey","Mexico Region 1 BNV","Mexico Region 2 (no CDMX, ZM y MTY)") -> Mexico Region 1 BNV | M7: NVFS1D0C0TC0Mexico Region 1 BNV4 | N7: NVFS1D0C0TC0 | O7: Mexico Region 1 BNV | P7: 4 | Q7: 6530
M8: NVFS1D0C0TC0Mexico Region 1 BNV5 | N8: NVFS1D0C0TC0 | O8: Mexico Region 1 BNV | P8: 5 | Q8: 6739
A9: Edad titular | B9: Sexo titular | C9: Valor prima | M9: NVFS1D0C0TC0Mexico Region 1 BNV6 | N9: NVFS1D0C0TC0 | O9: Mexico Region 1 BNV | P9: 6 | Q9: 6954
A10: ='Datos Asegurado'!C8 -> 0 | B10: =IF('Datos Asegurado'!C9="Masculino","Male","Female") -> Female | C10: =IFERROR(VLOOKUP(CONCATENATE($E$4,$A$7,A10),$M$3:$Q$851,5,FALSE),0) -> 0 | M10: NVFS1D0C0TC0Mexico Region 1 BNV7 | N10: NVFS1D0C0TC0 | O10: Mexico Region 1 BNV | P10: 7 | Q10: 7179
M11: NVFS1D0C0TC0Mexico Region 1 BNV8 | N11: NVFS1D0C0TC0 | O11: Mexico Region 1 BNV | P11: 8 | Q11: 7409
M12: NVFS1D0C0TC0Mexico Region 1 BNV9 | N12: NVFS1D0C0TC0 | O12: Mexico Region 1 BNV | P12: 9 | Q12: 7647
A13: Conyuges | E13: Hijos | I13: Dependientes | M13: NVFS1D0C0TC0Mexico Region 1 BNV10 | N13: NVFS1D0C0TC0 | O13: Mexico Region 1 BNV | P13: 10 | Q13: 7895
A14: Econyugues | B14: S Conyugues | C14: Valor prima | E14: E hijos | F14: S Hijos | G14: Valor prima | I14: E dependientes | J14: S dependientes | K14: Valor prima | M14: NVFS1D0C0TC0Mexico Region 1 BNV11 | N14: NVFS1D0C0TC0 | O14: Mexico Region 1 BNV | P14: 11 | Q14: 8151
A15: =IF('Datos Asegurado'!I6="Conyuge",'Datos Asegurado'!N6,"") ->  | B15: =IF('Datos Asegurado'!I6="Conyuge",IF('Datos Asegurado'!J6="Masculino","Male","Female"),"") ->  | C15: =IFERROR(VLOOKUP(CONCATENATE($E$4,$A$7,A15),$M$3:$Q$852,5,FALSE),0) -> 0 | E15: =IF('Datos Asegurado'!I6="Hij@",'Datos Asegurado'!N6,"") ->  | F15: =IF('Datos Asegurado'!I6="Hij@",IF('Datos Asegurado'!J6="Masculino","Male","Female"),"") ->  | G15: =IFERROR(VLOOKUP(CONCATENATE($E$4,$A$7,E15),$M$3:$Q$852,5,FALSE),0) -> 0 | I15: =IF('Datos Asegurado'!I6="Dependiente economico",'Datos Asegurado'!N6,"") ->  | J15: =IF('Datos Asegurado'!I6="Dependiente economico",IF('Datos Asegurado'!J6="Masculino","Male","Female"),"") ->  | K15: =IFERROR(VLOOKUP(CONCATENATE($E$4,$A$7,I15),$M$3:$Q$852,5,FALSE),0) -> 0 | M15: NVFS1D0C0TC0Mexico Region 1 BNV12 | N15: NVFS1D0C0TC0 | O15: Mexico Region 1 BNV | P15: 12 | Q15: 8414
A16: =IF('Datos Asegurado'!I7="Conyuge",'Datos Asegurado'!N7,"") ->  | B16: =IF('Datos Asegurado'!I7="Conyuge",IF('Datos Asegurado'!J7="Masculino","Male","Female"),"") ->  | C16: 0 | E16: =IF('Datos Asegurado'!I7="Hij@",'Datos Asegurado'!N7,"") ->  | F16: =IF('Datos Asegurado'!I7="Hij@",IF('Datos Asegurado'!J7="Masculino","Male","Female"),"") ->  | G16: 0 | I16: =IF('Datos Asegurado'!I7="Dependiente economico",'Datos Asegurado'!N7,"") ->  | J16: =IF('Datos Asegurado'!I7="Dependiente economico",IF('Datos Asegurado'!J7="Masculino","Male","Female"),"") ->  | K16: 0 | M16: NVFS1D0C0TC0Mexico Region 1 BNV13 | N16: NVFS1D0C0TC0 | O16: Mexico Region 1 BNV | P16: 13 | Q16: 8688
A17: =IF('Datos Asegurado'!I8="Conyuge",'Datos Asegurado'!N8,"") ->  | B17: =IF('Datos Asegurado'!I8="Conyuge",IF('Datos Asegurado'!J8="Masculino","Male","Female"),"") ->  | C17: 0 | E17: =IF('Datos Asegurado'!I8="Hij@",'Datos Asegurado'!N8,"") ->  | F17: =IF('Datos Asegurado'!I8="Hij@",IF('Datos Asegurado'!J8="Masculino","Male","Female"),"") ->  | G17: 0 | I17: =IF('Datos Asegurado'!I8="Dependiente economico",'Datos Asegurado'!N8,"") ->  | J17: =IF('Datos Asegurado'!I8="Dependiente economico",IF('Datos Asegurado'!J8="Masculino","Male","Female"),"") ->  | K17: 0 | M17: NVFS1D0C0TC0Mexico Region 1 BNV14 | N17: NVFS1D0C0TC0 | O17: Mexico Region 1 BNV | P17: 14 | Q17: 8970
A18: =IF('Datos Asegurado'!I9="Conyuge",'Datos Asegurado'!N9,"") ->  | B18: =IF('Datos Asegurado'!I9="Conyuge",IF('Datos Asegurado'!J9="Masculino","Male","Female"),"") ->  | C18: 0 | E18: =IF('Datos Asegurado'!I9="Hij@",'Datos Asegurado'!N9,"") ->  | F18: =IF('Datos Asegurado'!I9="Hij@",IF('Datos Asegurado'!J9="Masculino","Male","Female"),"") ->  | G18: 0 | I18: =IF('Datos Asegurado'!I9="Dependiente economico",'Datos Asegurado'!N9,"") ->  | J18: =IF('Datos Asegurado'!I9="Dependiente economico",IF('Datos Asegurado'!J9="Masculino","Male","Female"),"") ->  | K18: 0 | M18: NVFS1D0C0TC0Mexico Region 1 BNV15 | N18: NVFS1D0C0TC0 | O18: Mexico Region 1 BNV | P18: 15 | Q18: 9263
A19: =IF('Datos Asegurado'!I10="Conyuge",'Datos Asegurado'!N10,"") ->  | B19: =IF('Datos Asegurado'!I10="Conyuge",IF('Datos Asegurado'!J10="Masculino","Male","Female"),"") ->  | C19: 0 | E19: =IF('Datos Asegurado'!I10="Hij@",'Datos Asegurado'!N10,"") ->  | F19: =IF('Datos Asegurado'!I10="Hij@",IF('Datos Asegurado'!J10="Masculino","Male","Female"),"") ->  | G19: 0 | I19: =IF('Datos Asegurado'!I10="Dependiente economico",'Datos Asegurado'!N10,"") ->  | J19: =IF('Datos Asegurado'!I10="Dependiente economico",IF('Datos Asegurado'!J10="Masculino","Male","Female"),"") ->  | K19: 0 | M19: NVFS1D0C0TC0Mexico Region 1 BNV16 | N19: NVFS1D0C0TC0 | O19: Mexico Region 1 BNV | P19: 16 | Q19: 9565
A20: =IF('Datos Asegurado'!I11="Conyuge",'Datos Asegurado'!N11,"") ->  | B20: =IF('Datos Asegurado'!I11="Conyuge",IF('Datos Asegurado'!J11="Masculino","Male","Female"),"") ->  | C20: 0 | E20: =IF('Datos Asegurado'!I11="Hij@",'Datos Asegurado'!N11,"") ->  | F20: =IF('Datos Asegurado'!I11="Hij@",IF('Datos Asegurado'!J11="Masculino","Male","Female"),"") ->  | G20: 0 | I20: =IF('Datos Asegurado'!I11="Dependiente economico",'Datos Asegurado'!N11,"") ->  | J20: =IF('Datos Asegurado'!I11="Dependiente economico",IF('Datos Asegurado'!J11="Masculino","Male","Female"),"") ->  | K20: 0 | M20: NVFS1D0C0TC0Mexico Region 1 BNV17 | N20: NVFS1D0C0TC0 | O20: Mexico Region 1 BNV | P20: 17 | Q20: 9879
A21: =IF('Datos Asegurado'!I12="Conyuge",'Datos Asegurado'!N12,"") ->  | B21: =IF('Datos Asegurado'!I12="Conyuge",IF('Datos Asegurado'!J12="Masculino","Male","Female"),"") ->  | C21: 0 | E21: =IF('Datos Asegurado'!I12="Hij@",'Datos Asegurado'!N12,"") ->  | F21: =IF('Datos Asegurado'!I12="Hij@",IF('Datos Asegurado'!J12="Masculino","Male","Female"),"") ->  | G21: 0 | I21: =IF('Datos Asegurado'!I12="Dependiente economico",'Datos Asegurado'!N12,"") ->  | J21: =IF('Datos Asegurado'!I12="Dependiente economico",IF('Datos Asegurado'!J12="Masculino","Male","Female"),"") ->  | K21: 0 | M21: =CONCATENATE(N21,O21,P21) -> NVFS2D0C0TC0Mexico Region 1 BNV0 | N21: NVFS2D0C0TC0 | O21: Mexico Region 1 BNV | P21: 0 | Q21: 11084
A22: =IF('Datos Asegurado'!I13="Conyuge",'Datos Asegurado'!N13,"") ->  | B22: =IF('Datos Asegurado'!I13="Conyuge",IF('Datos Asegurado'!J13="Masculino","Male","Female"),"") ->  | C22: 0 | E22: =IF('Datos Asegurado'!I13="Hij@",'Datos Asegurado'!N13,"") ->  | F22: =IF('Datos Asegurado'!I13="Hij@",IF('Datos Asegurado'!J13="Masculino","Male","Female"),"") ->  | G22: 0 | I22: =IF('Datos Asegurado'!I13="Dependiente economico",'Datos Asegurado'!N13,"") ->  | J22: =IF('Datos Asegurado'!I13="Dependiente economico",IF('Datos Asegurado'!J13="Masculino","Male","Female"),"") ->  | K22: 0 | M22: NVFS2D0C0TC0Mexico Region 1 BNV1 | N22: NVFS2D0C0TC0 | O22: Mexico Region 1 BNV | P22: 1 | Q22: 9884
A23: =IF('Datos Asegurado'!I14="Conyuge",'Datos Asegurado'!N14,"") ->  | B23: =IF('Datos Asegurado'!I14="Conyuge",IF('Datos Asegurado'!J14="Masculino","Male","Female"),"") ->  | C23: 0 | E23: =IF('Datos Asegurado'!I14="Hij@",'Datos Asegurado'!N14,"") ->  | F23: =IF('Datos Asegurado'!I14="Hij@",IF('Datos Asegurado'!J14="Masculino","Male","Female"),"") ->  | G23: 0 | I23: =IF('Datos Asegurado'!I14="Dependiente economico",'Datos Asegurado'!N14,"") ->  | J23: =IF('Datos Asegurado'!I14="Dependiente economico",IF('Datos Asegurado'!J14="Masculino","Male","Female"),"") ->  | K23: 0 | M23: NVFS2D0C0TC0Mexico Region 1 BNV2 | N23: NVFS2D0C0TC0 | O23: Mexico Region 1 BNV | P23: 2 | Q23: 8588
B24: Total tarifa base | C24: =SUM(C15:C23) -> 0 | F24: Total tarifa base | G24: =SUM(G15:G23) -> 0 | J24: Total tarifa base | K24: =SUM(K15:K23) -> 0 | M24: NVFS2D0C0TC0Mexico Region 1 BNV3 | N24: NVFS2D0C0TC0 | O24: Mexico Region 1 BNV | P24: 3 | Q24: 8028
M25: NVFS2D0C0TC0Mexico Region 1 BNV4 | N25: NVFS2D0C0TC0 | O25: Mexico Region 1 BNV | P25: 4 | Q25: 7421
M26: NVFS2D0C0TC0Mexico Region 1 BNV5 | N26: NVFS2D0C0TC0 | O26: Mexico Region 1 BNV | P26: 5 | Q26: 7658
M27: NVFS2D0C0TC0Mexico Region 1 BNV6 | N27: NVFS2D0C0TC0 | O27: Mexico Region 1 BNV | P27: 6 | Q27: 7904
M28: NVFS2D0C0TC0Mexico Region 1 BNV7 | N28: NVFS2D0C0TC0 | O28: Mexico Region 1 BNV | P28: 7 | Q28: 8158
M29: NVFS2D0C0TC0Mexico Region 1 BNV8 | N29: NVFS2D0C0TC0 | O29: Mexico Region 1 BNV | P29: 8 | Q29: 8421
M30: NVFS2D0C0TC0Mexico Region 1 BNV9 | N30: NVFS2D0C0TC0 | O30: Mexico Region 1 BNV | P30: 9 | Q30: 8691
M31: NVFS2D0C0TC0Mexico Region 1 BNV10 | N31: NVFS2D0C0TC0 | O31: Mexico Region 1 BNV | P31: 10 | Q31: 8972
M32: NVFS2D0C0TC0Mexico Region 1 BNV11 | N32: NVFS2D0C0TC0 | O32: Mexico Region 1 BNV | P32: 11 | Q32: 9263
M33: NVFS2D0C0TC0Mexico Region 1 BNV12 | N33: NVFS2D0C0TC0 | O33: Mexico Region 1 BNV | P33: 12 | Q33: 9563
M34: NVFS2D0C0TC0Mexico Region 1 BNV13 | N34: NVFS2D0C0TC0 | O34: Mexico Region 1 BNV | P34: 13 | Q34: 9874
M35: NVFS2D0C0TC0Mexico Region 1 BNV14 | N35: NVFS2D0C0TC0 | O35: Mexico Region 1 BNV | P35: 14 | Q35: 10195
M36: NVFS2D0C0TC0Mexico Region 1 BNV15 | N36: NVFS2D0C0TC0 | O36: Mexico Region 1 BNV | P36: 15 | Q36: 10528
M37: NVFS2D0C0TC0Mexico Region 1 BNV16 | N37: NVFS2D0C0TC0 | O37: Mexico Region 1 BNV | P37: 16 | Q37: 10870
M38: =CONCATENATE(N38,O38,P38) -> NVFS2D0C0TC0Mexico Region 1 BNV17 | N38: NVFS2D0C0TC0 | O38: Mexico Region 1 BNV | P38: 17 | Q38: 11226
M39: NVFS3D0C0TC0Mexico Region 1 BNV0 | N39: NVFS3D0C0TC0 | O39: Mexico Region 1 BNV | P39: 0 | Q39: 12009
M40: =CONCATENATE(N40,O40,P40) -> NVFS3D0C0TC0Mexico Region 1 BNV1 | N40: NVFS3D0C0TC0 | O40: Mexico Region 1 BNV | P40: 1 | Q40: 10707
M41: NVFS3D0C0TC0Mexico Region 1 BNV2 | N41: NVFS3D0C0TC0 | O41: Mexico Region 1 BNV | P41: 2 | Q41: 9304
M42: NVFS3D0C0TC0Mexico Region 1 BNV3 | N42: NVFS3D0C0TC0 | O42: Mexico Region 1 BNV | P42: 3 | Q42: 8698
M43: NVFS3D0C0TC0Mexico Region 1 BNV4 | N43: NVFS3D0C0TC0 | O43: Mexico Region 1 BNV | P43: 4 | Q43: 8040
M44: NVFS3D0C0TC0Mexico Region 1 BNV5 | N44: NVFS3D0C0TC0 | O44: Mexico Region 1 BNV | P44: 5 | Q44: 8296
M45: NVFS3D0C0TC0Mexico Region 1 BNV6 | N45: NVFS3D0C0TC0 | O45: Mexico Region 1 BNV | P45: 6 | Q45: 8563
M46: NVFS3D0C0TC0Mexico Region 1 BNV7 | N46: NVFS3D0C0TC0 | O46: Mexico Region 1 BNV | P46: 7 | Q46: 8839
M47: NVFS3D0C0TC0Mexico Region 1 BNV8 | N47: NVFS3D0C0TC0 | O47: Mexico Region 1 BNV | P47: 8 | Q47: 9123
M48: NVFS3D0C0TC0Mexico Region 1 BNV9 | N48: NVFS3D0C0TC0 | O48: Mexico Region 1 BNV | P48: 9 | Q48: 9416
M49: NVFS3D0C0TC0Mexico Region 1 BNV10 | N49: NVFS3D0C0TC0 | O49: Mexico Region 1 BNV | P49: 10 | Q49: 9719
M50: NVFS3D0C0TC0Mexico Region 1 BNV11 | N50: NVFS3D0C0TC0 | O50: Mexico Region 1 BNV | P50: 11 | Q50: 10035
M51: NVFS3D0C0TC0Mexico Region 1 BNV12 | N51: NVFS3D0C0TC0 | O51: Mexico Region 1 BNV | P51: 12 | Q51: 10360
M52: NVFS3D0C0TC0Mexico Region 1 BNV13 | N52: NVFS3D0C0TC0 | O52: Mexico Region 1 BNV | P52: 13 | Q52: 10696
M53: NVFS3D0C0TC0Mexico Region 1 BNV14 | N53: NVFS3D0C0TC0 | O53: Mexico Region 1 BNV | P53: 14 | Q53: 11044
M54: NVFS3D0C0TC0Mexico Region 1 BNV15 | N54: NVFS3D0C0TC0 | O54: Mexico Region 1 BNV | P54: 15 | Q54: 11404
M55: NVFS3D0C0TC0Mexico Region 1 BNV16 | N55: NVFS3D0C0TC0 | O55: Mexico Region 1 BNV | P55: 16 | Q55: 11777
M56: =CONCATENATE(N56,O56,P56) -> NVFS3D0C0TC0Mexico Region 1 BNV17 | N56: NVFS3D0C0TC0 | O56: Mexico Region 1 BNV | P56: 17 | Q56: 12161
M57: NVFS4D0C0TC0Mexico Region 1 BNV0 | N57: NVFS4D0C0TC0 | O57: Mexico Region 1 BNV | P57: 0 | Q57: 12665
M58: =CONCATENATE(N58,O58,P58) -> NVFS4D0C0TC0Mexico Region 1 BNV1 | N58: NVFS4D0C0TC0 | O58: Mexico Region 1 BNV | P58: 1 | Q58: 11291
M59: NVFS4D0C0TC0Mexico Region 1 BNV2 | N59: NVFS4D0C0TC0 | O59: Mexico Region 1 BNV | P59: 2 | Q59: 9812
M60: NVFS4D0C0TC0Mexico Region 1 BNV3 | N60: NVFS4D0C0TC0 | O60: Mexico Region 1 BNV | P60: 3 | Q60: 9172
M61: NVFS4D0C0TC0Mexico Region 1 BNV4 | N61: NVFS4D0C0TC0 | O61: Mexico Region 1 BNV | P61: 4 | Q61: 8479
M62: NVFS4D0C0TC0Mexico Region 1 BNV5 | N62: NVFS4D0C0TC0 | O62: Mexico Region 1 BNV | P62: 5 | Q62: 8749
M63: NVFS4D0C0TC0Mexico Region 1 BNV6 | N63: NVFS4D0C0TC0 | O63: Mexico Region 1 BNV | P63: 6 | Q63: 9030
M64: NVFS4D0C0TC0Mexico Region 1 BNV7 | N64: NVFS4D0C0TC0 | O64: Mexico Region 1 BNV | P64: 7 | Q64: 9321
M65: NVFS4D0C0TC0Mexico Region 1 BNV8 | N65: NVFS4D0C0TC0 | O65: Mexico Region 1 BNV | P65: 8 | Q65: 9619
M66: NVFS4D0C0TC0Mexico Region 1 BNV9 | N66: NVFS4D0C0TC0 | O66: Mexico Region 1 BNV | P66: 9 | Q66: 9930
M67: NVFS4D0C0TC0Mexico Region 1 BNV10 | N67: NVFS4D0C0TC0 | O67: Mexico Region 1 BNV | P67: 10 | Q67: 10251
M68: NVFS4D0C0TC0Mexico Region 1 BNV11 | N68: NVFS4D0C0TC0 | O68: Mexico Region 1 BNV | P68: 11 | Q68: 10582
M69: NVFS4D0C0TC0Mexico Region 1 BNV12 | N69: NVFS4D0C0TC0 | O69: Mexico Region 1 BNV | P69: 12 | Q69: 10925
M70: =CONCATENATE(N70,O70,P70) -> NVFS4D0C0TC0Mexico Region 1 BNV13 | N70: NVFS4D0C0TC0 | O70: Mexico Region 1 BNV | P70: 13 | Q70: 11281
M71: =CONCATENATE(N71,O71,P71) -> NVFS4D0C0TC0Mexico Region 1 BNV14 | N71: NVFS4D0C0TC0 | O71: Mexico Region 1 BNV | P71: 14 | Q71: 11647
M72: =CONCATENATE(N72,O72,P72) -> NVFS4D0C0TC0Mexico Region 1 BNV15 | N72: NVFS4D0C0TC0 | O72: Mexico Region 1 BNV | P72: 15 | Q72: 12026
M73: =CONCATENATE(N73,O73,P73) -> NVFS4D0C0TC0Mexico Region 1 BNV16 | N73: NVFS4D0C0TC0 | O73: Mexico Region 1 BNV | P73: 16 | Q73: 12419
M74: NVFS4D0C0TC0Mexico Region 1 BNV17 | N74: NVFS4D0C0TC0 | O74: Mexico Region 1 BNV | P74: 17 | Q74: 12826
M75: =CONCATENATE(N75,O75,P75) -> NVFS5D0C0TC0Mexico Region 1 BNV0 | N75: NVFS5D0C0TC0 | O75: Mexico Region 1 BNV | P75: 0 | Q75: 12900
M76: =CONCATENATE(N76,O76,P76) -> NVFS5D0C0TC0Mexico Region 1 BNV1 | N76: NVFS5D0C0TC0 | O76: Mexico Region 1 BNV | P76: 1 | Q76: 11502
M77: =CONCATENATE(N77,O77,P77) -> NVFS5D0C0TC0Mexico Region 1 BNV2 | N77: NVFS5D0C0TC0 | O77: Mexico Region 1 BNV | P77: 2 | Q77: 9995
M78: =CONCATENATE(N78,O78,P78) -> NVFS5D0C0TC0Mexico Region 1 BNV3 | N78: NVFS5D0C0TC0 | O78: Mexico Region 1 BNV | P78: 3 | Q78: 9344
M79: =CONCATENATE(N79,O79,P79) -> NVFS5D0C0TC0Mexico Region 1 BNV4 | N79: NVFS5D0C0TC0 | O79: Mexico Region 1 BNV | P79: 4 | Q79: 8637
M80: =CONCATENATE(N80,O80,P80) -> NVFS5D0C0TC0Mexico Region 1 BNV5 | N80: NVFS5D0C0TC0 | O80: Mexico Region 1 BNV | P80: 5 | Q80: 8912
M81: =CONCATENATE(N81,O81,P81) -> NVFS5D0C0TC0Mexico Region 1 BNV6 | N81: NVFS5D0C0TC0 | O81: Mexico Region 1 BNV | P81: 6 | Q81: 9198
M82: =CONCATENATE(N82,O82,P82) -> NVFS5D0C0TC0Mexico Region 1 BNV7 | N82: NVFS5D0C0TC0 | O82: Mexico Region 1 BNV | P82: 7 | Q82: 9495
M83: =CONCATENATE(N83,O83,P83) -> NVFS5D0C0TC0Mexico Region 1 BNV8 | N83: NVFS5D0C0TC0 | O83: Mexico Region 1 BNV | P83: 8 | Q83: 9800
M84: =CONCATENATE(N84,O84,P84) -> NVFS5D0C0TC0Mexico Region 1 BNV9 | N84: NVFS5D0C0TC0 | O84: Mexico Region 1 BNV | P84: 9 | Q84: 10116
M85: =CONCATENATE(N85,O85,P85) -> NVFS5D0C0TC0Mexico Region 1 BNV10 | N85: NVFS5D0C0TC0 | O85: Mexico Region 1 BNV | P85: 10 | Q85: 10442
M86: =CONCATENATE(N86,O86,P86) -> NVFS5D0C0TC0Mexico Region 1 BNV11 | N86: NVFS5D0C0TC0 | O86: Mexico Region 1 BNV | P86: 11 | Q86: 10779
M87: =CONCATENATE(N87,O87,P87) -> NVFS5D0C0TC0Mexico Region 1 BNV12 | N87: NVFS5D0C0TC0 | O87: Mexico Region 1 BNV | P87: 12 | Q87: 11130
M88: =CONCATENATE(N88,O88,P88) -> NVFS5D0C0TC0Mexico Region 1 BNV13 | N88: NVFS5D0C0TC0 | O88: Mexico Region 1 BNV | P88: 13 | Q88: 11491
M89: =CONCATENATE(N89,O89,P89) -> NVFS5D0C0TC0Mexico Region 1 BNV14 | N89: NVFS5D0C0TC0 | O89: Mexico Region 1 BNV | P89: 14 | Q89: 11865
M90: =CONCATENATE(N90,O90,P90) -> NVFS5D0C0TC0Mexico Region 1 BNV15 | N90: NVFS5D0C0TC0 | O90: Mexico Region 1 BNV | P90: 15 | Q90: 12251
M91: =CONCATENATE(N91,O91,P91) -> NVFS5D0C0TC0Mexico Region 1 BNV16 | N91: NVFS5D0C0TC0 | O91: Mexico Region 1 BNV | P91: 16 | Q91: 12651
M92: NVFS5D0C0TC0Mexico Region 1 BNV17 | N92: NVFS5D0C0TC0 | O92: Mexico Region 1 BNV | P92: 17 | Q92: 13065
M93: =CONCATENATE(N93,O93,P93) -> NVFS1D0C0TC0Mexico Region 2 (no CDMX, ZM y MTY)0 | N93: NVFS1D0C0TC0 | O93: Mexico Region 2 (no CDMX, ZM y MTY) | P93: 0 | Q93: 7804
M94: =CONCATENATE(N94,O94,P94) -> NVFS1D0C0TC0Mexico Region 2 (no CDMX, ZM y MTY)1 | N94: NVFS1D0C0TC0 | O94: Mexico Region 2 (no CDMX, ZM y MTY) | P94: 1 | Q94: 6958
M95: =CONCATENATE(N95,O95,P95) -> NVFS1D0C0TC0Mexico Region 2 (no CDMX, ZM y MTY)2 | N95: NVFS1D0C0TC0 | O95: Mexico Region 2 (no CDMX, ZM y MTY) | P95: 2 | Q95: 6046
M96: =CONCATENATE(N96,O96,P96) -> NVFS1D0C0TC0Mexico Region 2 (no CDMX, ZM y MTY)3 | N96: NVFS1D0C0TC0 | O96: Mexico Region 2 (no CDMX, ZM y MTY) | P96: 3 | Q96: 5651
M97: =CONCATENATE(N97,O97,P97) -> NVFS1D0C0TC0Mexico Region 2 (no CDMX, ZM y MTY)4 | N97: NVFS1D0C0TC0 | O97: Mexico Region 2 (no CDMX, ZM y MTY) | P97: 4 | Q97: 5225
M98: =CONCATENATE(N98,O98,P98) -> NVFS1D0C0TC0Mexico Region 2 (no CDMX, ZM y MTY)5 | N98: NVFS1D0C0TC0 | O98: Mexico Region 2 (no CDMX, ZM y MTY) | P98: 5 | Q98: 5391
M99: =CONCATENATE(N99,O99,P99) -> NVFS1D0C0TC0Mexico Region 2 (no CDMX, ZM y MTY)6 | N99: NVFS1D0C0TC0 | O99: Mexico Region 2 (no CDMX, ZM y MTY) | P99: 6 | Q99: 5563
M100: =CONCATENATE(N100,O100,P100) -> NVFS1D0C0TC0Mexico Region 2 (no CDMX, ZM y MTY)7 | N100: NVFS1D0C0TC0 | O100: Mexico Region 2 (no CDMX, ZM y MTY) | P100: 7 | Q100: 5742
M101: =CONCATENATE(N101,O101,P101) -> NVFS1D0C0TC0Mexico Region 2 (no CDMX, ZM y MTY)8 | N101: NVFS1D0C0TC0 | O101: Mexico Region 2 (no CDMX, ZM y MTY) | P101: 8 | Q101: 5928
M102: =CONCATENATE(N102,O102,P102) -> NVFS1D0C0TC0Mexico Region 2 (no CDMX, ZM y MTY)9 | N102: NVFS1D0C0TC0 | O102: Mexico Region 2 (no CDMX, ZM y MTY) | P102: 9 | Q102: 6118
M103: =CONCATENATE(N103,O103,P103) -> NVFS1D0C0TC0Mexico Region 2 (no CDMX, ZM y MTY)10 | N103: NVFS1D0C0TC0 | O103: Mexico Region 2 (no CDMX, ZM y MTY) | P103: 10 | Q103: 6316
M104: =CONCATENATE(N104,O104,P104) -> NVFS1D0C0TC0Mexico Region 2 (no CDMX, ZM y MTY)11 | N104: NVFS1D0C0TC0 | O104: Mexico Region 2 (no CDMX, ZM y MTY) | P104: 11 | Q104: 6521
M105: =CONCATENATE(N105,O105,P105) -> NVFS1D0C0TC0Mexico Region 2 (no CDMX, ZM y MTY)12 | N105: NVFS1D0C0TC0 | O105: Mexico Region 2 (no CDMX, ZM y MTY) | P105: 12 | Q105: 6732
M106: =CONCATENATE(N106,O106,P106) -> NVFS1D0C0TC0Mexico Region 2 (no CDMX, ZM y MTY)13 | N106: NVFS1D0C0TC0 | O106: Mexico Region 2 (no CDMX, ZM y MTY) | P106: 13 | Q106: 6951
M107: =CONCATENATE(N107,O107,P107) -> NVFS1D0C0TC0Mexico Region 2 (no CDMX, ZM y MTY)14 | N107: NVFS1D0C0TC0 | O107: Mexico Region 2 (no CDMX, ZM y MTY) | P107: 14 | Q107: 7177
M108: =CONCATENATE(N108,O108,P108) -> NVFS1D0C0TC0Mexico Region 2 (no CDMX, ZM y MTY)15 | N108: NVFS1D0C0TC0 | O108: Mexico Region 2 (no CDMX, ZM y MTY) | P108: 15 | Q108: 7411
M109: =CONCATENATE(N109,O109,P109) -> NVFS1D0C0TC0Mexico Region 2 (no CDMX, ZM y MTY)16 | N109: NVFS1D0C0TC0 | O109: Mexico Region 2 (no CDMX, ZM y MTY) | P109: 16 | Q109: 7653
M110: NVFS1D0C0TC0Mexico Region 2 (no CDMX, ZM y MTY)17 | N110: NVFS1D0C0TC0 | O110: Mexico Region 2 (no CDMX, ZM y MTY) | P110: 17 | Q110: 7904
M111: =CONCATENATE(N111,O111,P111) -> NVFS2D0C0TC0Mexico Region 2 (no CDMX, ZM y MTY)0 | N111: NVFS2D0C0TC0 | O111: Mexico Region 2 (no CDMX, ZM y MTY) | P111: 0 | Q111: 8868
M112: =CONCATENATE(N112,O112,P112) -> NVFS2D0C0TC0Mexico Region 2 (no CDMX, ZM y MTY)1 | N112: NVFS2D0C0TC0 | O112: Mexico Region 2 (no CDMX, ZM y MTY) | P112: 1 | Q112: 7907
M113: =CONCATENATE(N113,O113,P113) -> NVFS2D0C0TC0Mexico Region 2 (no CDMX, ZM y MTY)2 | N113: NVFS2D0C0TC0 | O113: Mexico Region 2 (no CDMX, ZM y MTY) | P113: 2 | Q113: 6870
M114: =CONCATENATE(N114,O114,P114) -> NVFS2D0C0TC0Mexico Region 2 (no CDMX, ZM y MTY)3 | N114: NVFS2D0C0TC0 | O114: Mexico Region 2 (no CDMX, ZM y MTY) | P114: 3 | Q114: 6423
M115: =CONCATENATE(N115,O115,P115) -> NVFS2D0C0TC0Mexico Region 2 (no CDMX, ZM y MTY)4 | N115: NVFS2D0C0TC0 | O115: Mexico Region 2 (no CDMX, ZM y MTY) | P115: 4 | Q115: 5937
M116: =CONCATENATE(N116,O116,P116) -> NVFS2D0C0TC0Mexico Region 2 (no CDMX, ZM y MTY)5 | N116: NVFS2D0C0TC0 | O116: Mexico Region 2 (no CDMX, ZM y MTY) | P116: 5 | Q116: 6126
M117: =CONCATENATE(N117,O117,P117) -> NVFS2D0C0TC0Mexico Region 2 (no CDMX, ZM y MTY)6 | N117: NVFS2D0C0TC0 | O117: Mexico Region 2 (no CDMX, ZM y MTY) | P117: 6 | Q117: 6323
M118: =CONCATENATE(N118,O118,P118) -> NVFS2D0C0TC0Mexico Region 2 (no CDMX, ZM y MTY)7 | N118: NVFS2D0C0TC0 | O118: Mexico Region 2 (no CDMX, ZM y MTY) | P118: 7 | Q118: 6526
M119: =CONCATENATE(N119,O119,P119) -> NVFS2D0C0TC0Mexico Region 2 (no CDMX, ZM y MTY)8 | N119: NVFS2D0C0TC0 | O119: Mexico Region 2 (no CDMX, ZM y MTY) | P119: 8 | Q119: 6737
M120: =CONCATENATE(N120,O120,P120) -> NVFS2D0C0TC0Mexico Region 2 (no CDMX, ZM y MTY)9 | N120: NVFS2D0C0TC0 | O120: Mexico Region 2 (no CDMX, ZM y MTY) | P120: 9 | Q120: 6954
M121: =CONCATENATE(N121,O121,P121) -> NVFS2D0C0TC0Mexico Region 2 (no CDMX, ZM y MTY)10 | N121: NVFS2D0C0TC0 | O121: Mexico Region 2 (no CDMX, ZM y MTY) | P121: 10 | Q121: 7177
M122: =CONCATENATE(N122,O122,P122) -> NVFS2D0C0TC0Mexico Region 2 (no CDMX, ZM y MTY)11 | N122: NVFS2D0C0TC0 | O122: Mexico Region 2 (no CDMX, ZM y MTY) | P122: 11 | Q122: 7411
M123: =CONCATENATE(N123,O123,P123) -> NVFS2D0C0TC0Mexico Region 2 (no CDMX, ZM y MTY)12 | N123: NVFS2D0C0TC0 | O123: Mexico Region 2 (no CDMX, ZM y MTY) | P123: 12 | Q123: 7651
M124: =CONCATENATE(N124,O124,P124) -> NVFS2D0C0TC0Mexico Region 2 (no CDMX, ZM y MTY)13 | N124: NVFS2D0C0TC0 | O124: Mexico Region 2 (no CDMX, ZM y MTY) | P124: 13 | Q124: 7900
M125: =CONCATENATE(N125,O125,P125) -> NVFS2D0C0TC0Mexico Region 2 (no CDMX, ZM y MTY)14 | N125: NVFS2D0C0TC0 | O125: Mexico Region 2 (no CDMX, ZM y MTY) | P125: 14 | Q125: 8156
M126: =CONCATENATE(N126,O126,P126) -> NVFS2D0C0TC0Mexico Region 2 (no CDMX, ZM y MTY)15 | N126: NVFS2D0C0TC0 | O126: Mexico Region 2 (no CDMX, ZM y MTY) | P126: 15 | Q126: 8421
M127: =CONCATENATE(N127,O127,P127) -> NVFS2D0C0TC0Mexico Region 2 (no CDMX, ZM y MTY)16 | N127: NVFS2D0C0TC0 | O127: Mexico Region 2 (no CDMX, ZM y MTY) | P127: 16 | Q127: 8696
M128: NVFS2D0C0TC0Mexico Region 2 (no CDMX, ZM y MTY)17 | N128: NVFS2D0C0TC0 | O128: Mexico Region 2 (no CDMX, ZM y MTY) | P128: 17 | Q128: 8981
M129: =CONCATENATE(N129,O129,P129) -> NVFS3D0C0TC0Mexico Region 2 (no CDMX, ZM y MTY)0 | N129: NVFS3D0C0TC0 | O129: Mexico Region 2 (no CDMX, ZM y MTY) | P129: 0 | Q129: 9607
M130: =CONCATENATE(N130,O130,P130) -> NVFS3D0C0TC0Mexico Region 2 (no CDMX, ZM y MTY)1 | N130: NVFS3D0C0TC0 | O130: Mexico Region 2 (no CDMX, ZM y MTY) | P130: 1 | Q130: 8567
M131: =CONCATENATE(N131,O131,P131) -> NVFS3D0C0TC0Mexico Region 2 (no CDMX, ZM y MTY)2 | N131: NVFS3D0C0TC0 | O131: Mexico Region 2 (no CDMX, ZM y MTY) | P131: 2 | Q131: 7442
M132: =CONCATENATE(N132,O132,P132) -> NVFS3D0C0TC0Mexico Region 2 (no CDMX, ZM y MTY)3 | N132: NVFS3D0C0TC0 | O132: Mexico Region 2 (no CDMX, ZM y MTY) | P132: 3 | Q132: 6958
M133: =CONCATENATE(N133,O133,P133) -> NVFS3D0C0TC0Mexico Region 2 (no CDMX, ZM y MTY)4 | N133: NVFS3D0C0TC0 | O133: Mexico Region 2 (no CDMX, ZM y MTY) | P133: 4 | Q133: 6432
M134: =CONCATENATE(N134,O134,P134) -> NVFS3D0C0TC0Mexico Region 2 (no CDMX, ZM y MTY)5 | N134: NVFS3D0C0TC0 | O134: Mexico Region 2 (no CDMX, ZM y MTY) | P134: 5 | Q134: 6637
M135: =CONCATENATE(N135,O135,P135) -> NVFS3D0C0TC0Mexico Region 2 (no CDMX, ZM y MTY)6 | N135: NVFS3D0C0TC0 | O135: Mexico Region 2 (no CDMX, ZM y MTY) | P135: 6 | Q135: 6851
M136: =CONCATENATE(N136,O136,P136) -> NVFS3D0C0TC0Mexico Region 2 (no CDMX, ZM y MTY)7 | N136: NVFS3D0C0TC0 | O136: Mexico Region 2 (no CDMX, ZM y MTY) | P136: 7 | Q136: 7070
M137: =CONCATENATE(N137,O137,P137) -> NVFS3D0C0TC0Mexico Region 2 (no CDMX, ZM y MTY)8 | N137: NVFS3D0C0TC0 | O137: Mexico Region 2 (no CDMX, ZM y MTY) | P137: 8 | Q137: 7298
M138: =CONCATENATE(N138,O138,P138) -> NVFS3D0C0TC0Mexico Region 2 (no CDMX, ZM y MTY)9 | N138: NVFS3D0C0TC0 | O138: Mexico Region 2 (no CDMX, ZM y MTY) | P138: 9 | Q138: 7533
M139: =CONCATENATE(N139,O139,P139) -> NVFS3D0C0TC0Mexico Region 2 (no CDMX, ZM y MTY)10 | N139: NVFS3D0C0TC0 | O139: Mexico Region 2 (no CDMX, ZM y MTY) | P139: 10 | Q139: 7775
M140: =CONCATENATE(N140,O140,P140) -> NVFS3D0C0TC0Mexico Region 2 (no CDMX, ZM y MTY)11 | N140: NVFS3D0C0TC0 | O140: Mexico Region 2 (no CDMX, ZM y MTY) | P140: 11 | Q140: 8028
M141: =CONCATENATE(N141,O141,P141) -> NVFS3D0C0TC0Mexico Region 2 (no CDMX, ZM y MTY)12 | N141: NVFS3D0C0TC0 | O141: Mexico Region 2 (no CDMX, ZM y MTY) | P141: 12 | Q141: 8288
M142: =CONCATENATE(N142,O142,P142) -> NVFS3D0C0TC0Mexico Region 2 (no CDMX, ZM y MTY)13 | N142: NVFS3D0C0TC0 | O142: Mexico Region 2 (no CDMX, ZM y MTY) | P142: 13 | Q142: 8558
M143: =CONCATENATE(N143,O143,P143) -> NVFS3D0C0TC0Mexico Region 2 (no CDMX, ZM y MTY)14 | N143: NVFS3D0C0TC0 | O143: Mexico Region 2 (no CDMX, ZM y MTY) | P143: 14 | Q143: 8835
M144: =CONCATENATE(N144,O144,P144) -> NVFS3D0C0TC0Mexico Region 2 (no CDMX, ZM y MTY)15 | N144: NVFS3D0C0TC0 | O144: Mexico Region 2 (no CDMX, ZM y MTY) | P144: 15 | Q144: 9123
M145: =CONCATENATE(N145,O145,P145) -> NVFS3D0C0TC0Mexico Region 2 (no CDMX, ZM y MTY)16 | N145: NVFS3D0C0TC0 | O145: Mexico Region 2 (no CDMX, ZM y MTY) | P145: 16 | Q145: 9421
M146: NVFS3D0C0TC0Mexico Region 2 (no CDMX, ZM y MTY)17 | N146: NVFS3D0C0TC0 | O146: Mexico Region 2 (no CDMX, ZM y MTY) | P146: 17 | Q146: 9730
M147: =CONCATENATE(N147,O147,P147) -> NVFS4D0C0TC0Mexico Region 2 (no CDMX, ZM y MTY)0 | N147: NVFS4D0C0TC0 | O147: Mexico Region 2 (no CDMX, ZM y MTY) | P147: 0 | Q147: 10132
M148: =CONCATENATE(N148,O148,P148) -> NVFS4D0C0TC0Mexico Region 2 (no CDMX, ZM y MTY)1 | N148: NVFS4D0C0TC0 | O148: Mexico Region 2 (no CDMX, ZM y MTY) | P148: 1 | Q148: 9033
M149: =CONCATENATE(N149,O149,P149) -> NVFS4D0C0TC0Mexico Region 2 (no CDMX, ZM y MTY)2 | N149: NVFS4D0C0TC0 | O149: Mexico Region 2 (no CDMX, ZM y MTY) | P149: 2 | Q149: 7849
M150: =CONCATENATE(N150,O150,P150) -> NVFS4D0C0TC0Mexico Region 2 (no CDMX, ZM y MTY)3 | N150: NVFS4D0C0TC0 | O150: Mexico Region 2 (no CDMX, ZM y MTY) | P150: 3 | Q150: 7339
M151: =CONCATENATE(N151,O151,P151) -> NVFS4D0C0TC0Mexico Region 2 (no CDMX, ZM y MTY)4 | N151: NVFS4D0C0TC0 | O151: Mexico Region 2 (no CDMX, ZM y MTY) | P151: 4 | Q151: 6782
M152: =CONCATENATE(N152,O152,P152) -> NVFS4D0C0TC0Mexico Region 2 (no CDMX, ZM y MTY)5 | N152: NVFS4D0C0TC0 | O152: Mexico Region 2 (no CDMX, ZM y MTY) | P152: 5 | Q152: 7000
M153: =CONCATENATE(N153,O153,P153) -> NVFS4D0C0TC0Mexico Region 2 (no CDMX, ZM y MTY)6 | N153: NVFS4D0C0TC0 | O153: Mexico Region 2 (no CDMX, ZM y MTY) | P153: 6 | Q153: 7225
M154: =CONCATENATE(N154,O154,P154) -> NVFS4D0C0TC0Mexico Region 2 (no CDMX, ZM y MTY)7 | N154: NVFS4D0C0TC0 | O154: Mexico Region 2 (no CDMX, ZM y MTY) | P154: 7 | Q154: 7456
M155: =CONCATENATE(N155,O155,P155) -> NVFS4D0C0TC0Mexico Region 2 (no CDMX, ZM y MTY)8 | N155: NVFS4D0C0TC0 | O155: Mexico Region 2 (no CDMX, ZM y MTY) | P155: 8 | Q155: 7696
M156: =CONCATENATE(N156,O156,P156) -> NVFS4D0C0TC0Mexico Region 2 (no CDMX, ZM y MTY)9 | N156: NVFS4D0C0TC0 | O156: Mexico Region 2 (no CDMX, ZM y MTY) | P156: 9 | Q156: 7944
M157: =CONCATENATE(N157,O157,P157) -> NVFS4D0C0TC0Mexico Region 2 (no CDMX, ZM y MTY)10 | N157: NVFS4D0C0TC0 | O157: Mexico Region 2 (no CDMX, ZM y MTY) | P157: 10 | Q157: 8200
M158: =CONCATENATE(N158,O158,P158) -> NVFS4D0C0TC0Mexico Region 2 (no CDMX, ZM y MTY)11 | N158: NVFS4D0C0TC0 | O158: Mexico Region 2 (no CDMX, ZM y MTY) | P158: 11 | Q158: 8467
M159: =CONCATENATE(N159,O159,P159) -> NVFS4D0C0TC0Mexico Region 2 (no CDMX, ZM y MTY)12 | N159: NVFS4D0C0TC0 | O159: Mexico Region 2 (no CDMX, ZM y MTY) | P159: 12 | Q159: 8740
M160: =CONCATENATE(N160,O160,P160) -> NVFS4D0C0TC0Mexico Region 2 (no CDMX, ZM y MTY)13 | N160: NVFS4D0C0TC0 | O160: Mexico Region 2 (no CDMX, ZM y MTY) | P160: 13 | Q160: 9025
M161: =CONCATENATE(N161,O161,P161) -> NVFS4D0C0TC0Mexico Region 2 (no CDMX, ZM y MTY)14 | N161: NVFS4D0C0TC0 | O161: Mexico Region 2 (no CDMX, ZM y MTY) | P161: 14 | Q161: 9318
M162: =CONCATENATE(N162,O162,P162) -> NVFS4D0C0TC0Mexico Region 2 (no CDMX, ZM y MTY)15 | N162: NVFS4D0C0TC0 | O162: Mexico Region 2 (no CDMX, ZM y MTY) | P162: 15 | Q162: 9621
M163: =CONCATENATE(N163,O163,P163) -> NVFS4D0C0TC0Mexico Region 2 (no CDMX, ZM y MTY)16 | N163: NVFS4D0C0TC0 | O163: Mexico Region 2 (no CDMX, ZM y MTY) | P163: 16 | Q163: 9935
M164: NVFS4D0C0TC0Mexico Region 2 (no CDMX, ZM y MTY)17 | N164: NVFS4D0C0TC0 | O164: Mexico Region 2 (no CDMX, ZM y MTY) | P164: 17 | Q164: 10261
M165: =CONCATENATE(N165,O165,P165) -> NVFS5D0C0TC0Mexico Region 2 (no CDMX, ZM y MTY)0 | N165: NVFS5D0C0TC0 | O165: Mexico Region 2 (no CDMX, ZM y MTY) | P165: 0 | Q165: 10321
M166: =CONCATENATE(N166,O166,P166) -> NVFS5D0C0TC0Mexico Region 2 (no CDMX, ZM y MTY)1 | N166: NVFS5D0C0TC0 | O166: Mexico Region 2 (no CDMX, ZM y MTY) | P166: 1 | Q166: 9202
M167: =CONCATENATE(N167,O167,P167) -> NVFS5D0C0TC0Mexico Region 2 (no CDMX, ZM y MTY)2 | N167: NVFS5D0C0TC0 | O167: Mexico Region 2 (no CDMX, ZM y MTY) | P167: 2 | Q167: 7995
M168: =CONCATENATE(N168,O168,P168) -> NVFS5D0C0TC0Mexico Region 2 (no CDMX, ZM y MTY)3 | N168: NVFS5D0C0TC0 | O168: Mexico Region 2 (no CDMX, ZM y MTY) | P168: 3 | Q168: 7475
M169: =CONCATENATE(N169,O169,P169) -> NVFS5D0C0TC0Mexico Region 2 (no CDMX, ZM y MTY)4 | N169: NVFS5D0C0TC0 | O169: Mexico Region 2 (no CDMX, ZM y MTY) | P169: 4 | Q169: 6911
M170: =CONCATENATE(N170,O170,P170) -> NVFS5D0C0TC0Mexico Region 2 (no CDMX, ZM y MTY)5 | N170: NVFS5D0C0TC0 | O170: Mexico Region 2 (no CDMX, ZM y MTY) | P170: 5 | Q170: 7130
M171: =CONCATENATE(N171,O171,P171) -> NVFS5D0C0TC0Mexico Region 2 (no CDMX, ZM y MTY)6 | N171: NVFS5D0C0TC0 | O171: Mexico Region 2 (no CDMX, ZM y MTY) | P171: 6 | Q171: 7360
M172: =CONCATENATE(N172,O172,P172) -> NVFS5D0C0TC0Mexico Region 2 (no CDMX, ZM y MTY)7 | N172: NVFS5D0C0TC0 | O172: Mexico Region 2 (no CDMX, ZM y MTY) | P172: 7 | Q172: 7595
M173: =CONCATENATE(N173,O173,P173) -> NVFS5D0C0TC0Mexico Region 2 (no CDMX, ZM y MTY)8 | N173: NVFS5D0C0TC0 | O173: Mexico Region 2 (no CDMX, ZM y MTY) | P173: 8 | Q173: 7839
M174: =CONCATENATE(N174,O174,P174) -> NVFS5D0C0TC0Mexico Region 2 (no CDMX, ZM y MTY)9 | N174: NVFS5D0C0TC0 | O174: Mexico Region 2 (no CDMX, ZM y MTY) | P174: 9 | Q174: 8093
M175: =CONCATENATE(N175,O175,P175) -> NVFS5D0C0TC0Mexico Region 2 (no CDMX, ZM y MTY)10 | N175: NVFS5D0C0TC0 | O175: Mexico Region 2 (no CDMX, ZM y MTY) | P175: 10 | Q175: 8353
M176: =CONCATENATE(N176,O176,P176) -> NVFS5D0C0TC0Mexico Region 2 (no CDMX, ZM y MTY)11 | N176: NVFS5D0C0TC0 | O176: Mexico Region 2 (no CDMX, ZM y MTY) | P176: 11 | Q176: 8623
M177: =CONCATENATE(N177,O177,P177) -> NVFS5D0C0TC0Mexico Region 2 (no CDMX, ZM y MTY)12 | N177: NVFS5D0C0TC0 | O177: Mexico Region 2 (no CDMX, ZM y MTY) | P177: 12 | Q177: 8904
M178: =CONCATENATE(N178,O178,P178) -> NVFS5D0C0TC0Mexico Region 2 (no CDMX, ZM y MTY)13 | N178: NVFS5D0C0TC0 | O178: Mexico Region 2 (no CDMX, ZM y MTY) | P178: 13 | Q178: 9193
M179: =CONCATENATE(N179,O179,P179) -> NVFS5D0C0TC0Mexico Region 2 (no CDMX, ZM y MTY)14 | N179: NVFS5D0C0TC0 | O179: Mexico Region 2 (no CDMX, ZM y MTY) | P179: 14 | Q179: 9491
M180: =CONCATENATE(N180,O180,P180) -> NVFS5D0C0TC0Mexico Region 2 (no CDMX, ZM y MTY)15 | N180: NVFS5D0C0TC0 | O180: Mexico Region 2 (no CDMX, ZM y MTY) | P180: 15 | Q180: 9800
M181: =CONCATENATE(N181,O181,P181) -> NVFS5D0C0TC0Mexico Region 2 (no CDMX, ZM y MTY)16 | N181: NVFS5D0C0TC0 | O181: Mexico Region 2 (no CDMX, ZM y MTY) | P181: 16 | Q181: 10121
M182: NVFS5D0C0TC0Mexico Region 2 (no CDMX, ZM y MTY)17 | N182: NVFS5D0C0TC0 | O182: Mexico Region 2 (no CDMX, ZM y MTY) | P182: 17 | Q182: 10453
M183: =CONCATENATE(N183,O183,P183) -> NVFS1D0C0TC0Mexico Region 1 BNV18 | N183: NVFS1D0C0TC0 | O183: Mexico Region 1 BNV | P183: 18 | Q183: 10163
M184: =CONCATENATE(N184,O184,P184) -> NVFS1D0C0TC0Mexico Region 1 BNV19 | N184: NVFS1D0C0TC0 | O184: Mexico Region 1 BNV | P184: 19 | Q184: 10465
M185: =CONCATENATE(N185,O185,P185) -> NVFS1D0C0TC0Mexico Region 1 BNV20 | N185: NVFS1D0C0TC0 | O185: Mexico Region 1 BNV | P185: 20 | Q185: 10774
M186: =CONCATENATE(N186,O186,P186) -> NVFS1D0C0TC0Mexico Region 1 BNV21 | N186: NVFS1D0C0TC0 | O186: Mexico Region 1 BNV | P186: 21 | Q186: 11093
M187: =CONCATENATE(N187,O187,P187) -> NVFS1D0C0TC0Mexico Region 1 BNV22 | N187: NVFS1D0C0TC0 | O187: Mexico Region 1 BNV | P187: 22 | Q187: 11423
M188: =CONCATENATE(N188,O188,P188) -> NVFS1D0C0TC0Mexico Region 1 BNV23 | N188: NVFS1D0C0TC0 | O188: Mexico Region 1 BNV | P188: 23 | Q188: 11761
M189: =CONCATENATE(N189,O189,P189) -> NVFS1D0C0TC0Mexico Region 1 BNV24 | N189: NVFS1D0C0TC0 | O189: Mexico Region 1 BNV | P189: 24 | Q189: 12111
M190: =CONCATENATE(N190,O190,P190) -> NVFS1D0C0TC0Mexico Region 1 BNV25 | N190: NVFS1D0C0TC0 | O190: Mexico Region 1 BNV | P190: 25 | Q190: 12470
M191: =CONCATENATE(N191,O191,P191) -> NVFS1D0C0TC0Mexico Region 1 BNV26 | N191: NVFS1D0C0TC0 | O191: Mexico Region 1 BNV | P191: 26 | Q191: 12840
M192: =CONCATENATE(N192,O192,P192) -> NVFS1D0C0TC0Mexico Region 1 BNV27 | N192: NVFS1D0C0TC0 | O192: Mexico Region 1 BNV | P192: 27 | Q192: 13221
M193: =CONCATENATE(N193,O193,P193) -> NVFS1D0C0TC0Mexico Region 1 BNV28 | N193: NVFS1D0C0TC0 | O193: Mexico Region 1 BNV | P193: 28 | Q193: 13614
M194: =CONCATENATE(N194,O194,P194) -> NVFS1D0C0TC0Mexico Region 1 BNV29 | N194: NVFS1D0C0TC0 | O194: Mexico Region 1 BNV | P194: 29 | Q194: 14019
M195: =CONCATENATE(N195,O195,P195) -> NVFS1D0C0TC0Mexico Region 1 BNV30 | N195: NVFS1D0C0TC0 | O195: Mexico Region 1 BNV | P195: 30 | Q195: 15819
M196: =CONCATENATE(N196,O196,P196) -> NVFS1D0C0TC0Mexico Region 1 BNV31 | N196: NVFS1D0C0TC0 | O196: Mexico Region 1 BNV | P196: 31 | Q196: 16291
M197: =CONCATENATE(N197,O197,P197) -> NVFS1D0C0TC0Mexico Region 1 BNV32 | N197: NVFS1D0C0TC0 | O197: Mexico Region 1 BNV | P197: 32 | Q197: 16775
M198: =CONCATENATE(N198,O198,P198) -> NVFS1D0C0TC0Mexico Region 1 BNV33 | N198: NVFS1D0C0TC0 | O198: Mexico Region 1 BNV | P198: 33 | Q198: 17275
M199: =CONCATENATE(N199,O199,P199) -> NVFS1D0C0TC0Mexico Region 1 BNV34 | N199: NVFS1D0C0TC0 | O199: Mexico Region 1 BNV | P199: 34 | Q199: 17789
M200: =CONCATENATE(N200,O200,P200) -> NVFS1D0C0TC0Mexico Region 1 BNV35 | N200: NVFS1D0C0TC0 | O200: Mexico Region 1 BNV | P200: 35 | Q200: 18319
... 652 more rows
